Workbook

Sheet 年度更新について (hidden)
A1: 年度更新について R2.3.30塚本（R3.7追加修正）
A3: 更新が必要なシート（赤色）
B4: ① 試算（これだけ赤色にしていません）
B5: ② 軽減計算
B6: ③ 給与所得計算
B7: ④ 年金所得計算
B8: ⑤ 基本情報（毎年更新）
A10: 更新事項について
A11: 全般的事項
B12: 税制改正等が無ければ、基本的には赤色のシートのうち黄色のセルを更新すれば大丈夫です。
B13: 元号が変われば「賦課試算」シートの修正が必要。
A15: 個別事項
B16: ② 軽減計算
B17: 軽減の計算については、給与・年金所得の控除額の改正があり、令和３年度算定分から影響を受けるため、
B18: 適正な金額になるように数式を見直してください。⇒R3.7月修正済み
B20: ③ 給与所得計算
B21: ④ 年金所得計算
B22: 控除額等の修正が考えられるので、修正があった場合は、A・C列は金額の修正、
B23: E～L列については、IF関数の「真の場合」の数式を修正してください。⇒R3年度版対応済み
B25: ⑤ 基本情報（毎年更新）
B26: 毎年入力してください。（数字が変わらない場合でも）
B27: 基礎控除額が変わったときは、試算額に影響が出ると思うので、「賦課試算」シートの確認が必要となります。
A29: 修正履歴
B30: R3.7月：給与・年金所得の計算方法変更に対応
B31: R4.7月：未就学児の均等割軽減に対応

Sheet 試算
A1: 令和 | D1: 5 | F1: 年度 国保税額試算シート
B3: ※次のような場合は、税額を計算することができませんので、直接窓口にてお尋ねください。
C4: ● 年度途中で国保に「加入」または「脱退」する世帯員がいる場合
C5: ● 年度途中に75歳になる国保加入者がいる場合
C6: ● 国保から後期高齢者医療制度に移行した世帯員がいる場合
C7: ● 分離課税の所得や専従者控除、専従者給与、純損失・雑損失の繰越控除などがある場合
C8: ● 非自発失業者に対する国保税の軽減措置の対象者がいる場合
B11: 試算方法
C12: ① 国保加入月を入力してください。
C13: ② 世帯主の国保加入の有無を入力してください。
C14: ③ 世帯主と国保に加入する世帯員の生年月日と収入（所得）を入力してください。
D15: ※世帯主は国保に加入しない場合でも必ず入力してください。
B18: 何月から国保に加入しますか？ （数字を入力してください。）
B20: 世帯主は国保に加入しますか？
F22: 生 年 月 日 （元号はリストから選択） | Q22: 生年月日 （計算用） | T22: 年齢 | V22: ="R"&D1&".1.1" -> R5.1.1 | X22: =加入情報!T3 ->  | Z22: ="令和"&$D$1-1&"年中の給与収入" -> 令和4年中の給与収入 | AK22: ="令和"&$D$1-1&"年中の年金収入" -> 令和4年中の年金収入 | AV22: ="令和"&$D$1-1&"年中のその他所得" -> 令和4年中のその他所得
Z23: 総支給額を記入してください。 （源泉徴収票の支払金額） | AK23: 総支給額を記入してください。 （源泉徴収票の支払金額） | AV23: ※ 収入金額から必要経費を差引いた金額を入力してください
B25: 1 | C25: 世帯主 | J25: 年 | M25: 月 | P25: 日 | Q25: =CONCATENATE(F25,H25,J25,K25,M25,N25,P25) -> 年月日 | T25: =IFERROR(DATEDIF(Q25,TODAY(),"y"),"") ->  | V25: =IFERROR(DATEDIF(Q25,$V$22,"y"),"") ->  | X25: =IFERROR(DATEDIF(Q25,$X$22,"y"),"") -> 
B27: 2 | C27: 世帯員 | J27: 年 | M27: 月 | P27: 日 | Q27: =CONCATENATE(F27,H27,J27,K27,M27,N27,P27) -> 年月日 | T27: =IFERROR(DATEDIF(Q27,TODAY(),"y"),"") ->  | V27: =IFERROR(DATEDIF(Q27,$V$22,"y"),"") ->  | X27: =IFERROR(DATEDIF(Q27,$X$22,"y"),"") -> 
B29: 3 | C29: 世帯員 | J29: 年 | M29: 月 | P29: 日 | Q29: =CONCATENATE(F29,H29,J29,K29,M29,N29,P29) -> 年月日 | T29: =IFERROR(DATEDIF(Q29,TODAY(),"y"),"") ->  | V29: =IFERROR(DATEDIF(Q29,$V$22,"y"),"") ->  | X29: =IFERROR(DATEDIF(Q29,$X$22,"y"),"") -> 
B31: 4 | C31: 世帯員 | J31: 年 | M31: 月 | P31: 日 | Q31: =CONCATENATE(F31,H31,J31,K31,M31,N31,P31) -> 年月日 | T31: =IFERROR(DATEDIF(Q31,TODAY(),"y"),"") ->  | V31: =IFERROR(DATEDIF(Q31,$V$22,"y"),"") ->  | X31: =IFERROR(DATEDIF(Q31,$X$22,"y"),"") -> 
B33: 5 | C33: 世帯員 | J33: 年 | M33: 月 | P33: 日 | Q33: =CONCATENATE(F33,H33,J33,K33,M33,N33,P33) -> 年月日 | T33: =IFERROR(DATEDIF(Q33,TODAY(),"y"),"") ->  | V33: =IFERROR(DATEDIF(Q33,$V$22,"y"),"") ->  | X33: =IFERROR(DATEDIF(Q33,$X$22,"y"),"") -> 
B35: 6 | C35: 世帯員 | J35: 年 | M35: 月 | P35: 日 | Q35: =CONCATENATE(F35,H35,J35,K35,M35,N35,P35) -> 年月日 | T35: =IFERROR(DATEDIF(Q35,TODAY(),"y"),"") ->  | V35: =IFERROR(DATEDIF(Q35,$V$22,"y"),"") ->  | X35: =IFERROR(DATEDIF(Q35,$X$22,"y"),"") -> 
B37: 7 | C37: 世帯員 | J37: 年 | M37: 月 | P37: 日 | Q37: =CONCATENATE(F37,H37,J37,K37,M37,N37,P37) -> 年月日 | T37: =IFERROR(DATEDIF(Q37,TODAY(),"y"),"") ->  | V37: =IFERROR(DATEDIF(Q37,$V$22,"y"),"") ->  | X37: =IFERROR(DATEDIF(Q37,$X$22,"y"),"") -> 
B39: 8 | C39: 世帯員 | J39: 年 | M39: 月 | P39: 日 | Q39: =CONCATENATE(F39,H39,J39,K39,M39,N39,P39) -> 年月日 | T39: =IFERROR(DATEDIF(Q39,TODAY(),"y"),"") ->  | V39: =IFERROR(DATEDIF(Q39,$V$22,"y"),"") ->  | X39: =IFERROR(DATEDIF(Q39,$X$22,"y"),"") -> 
X41: 被保数
X42: =IF(O20="はい",COUNTIF(X27:Y40,"<75")+1,COUNTIF(X27:Y40,"<75")) -> 0
B43: 試算結果 | H43: ※このシートで試算される税額はあくまで概算額です。実際の課税額とは異なることがあります。
B45: 加入者数 | H45: =X42 -> 0 | M45: 課税所得合計 | AA45: =軽減計算!O17 -> 0 | AN45: 軽減割合 | AU45: =IF(軽減計算!J18=0,"なし",軽減計算!J18&"割軽減") -> 7割軽減
B47: 【課税内訳】 | M47: 基礎課税額（医療分） | AF47: 後期高齢者支援金等課税額 | AR47: 介護納付金課税額 （40歳～64歳）
B49: ① 所得割額 | M49: =賦課試算!X184 -> 0 | AF49: =賦課試算!AD184 -> 0 | AR49: =賦課試算!AJ184 -> 0
B51: ② 均等割額 | M51: =賦課試算!AA184 -> 0 | AF51: =賦課試算!AG184 -> 0 | AR51: =賦課試算!AM184 -> 0
B53: ③ 平等割額 | M53: =賦課試算!X185 -> 0 | AF53: =賦課試算!AD185 -> 0 | AR53: =賦課試算!AJ185 -> 0
B55: ④ 課税限度超過額 | M55: =賦課試算!X186 -> 0 | AF55: =賦課試算!AD186 -> 0 | AR55: =賦課試算!AJ186 -> 0
B57: 合 計 （①＋②＋③－④） ※100円未満切り捨て | M57: =賦課試算!X187 -> 0 | AF57: =賦課試算!AD187 -> 0 | AR57: =賦課試算!AJ187 -> 0
B60: =O18&"月から加入された場合の国保税額" -> 月から加入された場合の国保税額 | Z60: =M57+AF57+AR57 -> 0 | AM60: （一月当たり） | AR60: =IFERROR(ROUND(Z60/賦課試算!S159,0),0) -> 0
B63: 仮算定 《第1期（4月）～第3期（6月）》 | AE63: =IF(D1=2,"・・・平成30年中の所得で仮算定します","・・・令和"&D1-2&"年中の所得で仮算定します") -> ・・・令和3年中の所得で仮算定します
C64: ="令和"&D1&"年度の国保税は、令和"&D1-1&"年中の所得で算定しますが、所得が確定していない第1期（4月納期）から" -> 令和5年度の国保税は、令和4年中の所得で算定しますが、所得が確定していない第1期（4月納期）から
C65: ="第3期（6月納期）までは、令和"&D1-1&"年度国保税（年税額）の12分の1相当額が各期の税額となります。" -> 第3期（6月納期）までは、令和4年度国保税（年税額）の12分の1相当額が各期の税額となります。
B67: 本算定 《第4期（7月）～第12期（3月）》 | AE67: ="・・・令和"&D1-1&"年中の所得で算定し直します" -> ・・・令和4年中の所得で算定し直します
C68: ="令和"&D1&"年度の国保税（年税額）は、7月に本課税します。" -> 令和5年度の国保税（年税額）は、7月に本課税します。
C69: ="前年所得で算定し直した令和"&D1&"年度の年税額から、仮算定（第1期～第3期）の国保税を差し引いた額を" -> 前年所得で算定し直した令和5年度の年税額から、仮算定（第1期～第3期）の国保税を差し引いた額を
C70: 第4期（7月納期）から第12期（3月納期）までの納期で納めていただくこととなります。
B71: ※税率等について
M73: 基礎課税額（医療分） | AF73: 後期高齢者支援金等課税額 | AR73: 介護納付金課税額 （40歳～64歳）
B75: ① 所得割額 | M75: =賦課試算!K3 -> 0.106 | AF75: =賦課試算!W3 -> 0.033 | AR75: =賦課試算!AI3 -> 0.027
B77: ② 均等割額 | M77: =賦課試算!N3 -> 29600 | AF77: =賦課試算!Z3 -> 9300 | AR77: =賦課試算!AL3 -> 14900
B79: ③ 平等割額 | M79: =賦課試算!Q3 -> 22000 | AF79: =賦課試算!AC3 -> 6900 | AR79: =IF(賦課試算!AO3=0,"なし",賦課試算!AO3&"円") -> なし
B81: ④ 課税限度額 | M81: =賦課試算!T3 -> 650000 | AF81: =賦課試算!AF3 -> 220000 | AR81: =賦課試算!AR3 -> 170000

Sheet 基本情報（毎年更新） (hidden)
B1: 医療 | F1: 後期 | J1: 介護 | N1: 基礎控除額
B2: 所得割 | C2: 均等割 | D2: 平等割 | E2: 限度額 | F2: 所得割 | G2: 均等割 | H2: 平等割 | I2: 限度額 | J2: 所得割 | K2: 均等割 | L2: 平等割 | M2: 限度額
A3: H28 | B3: 0.096 | C3: 24800 | D3: 19200 | E3: 540000 | F3: 0.039 | G3: 6200 | H3: 4800 | I3: 190000 | J3: 0.029 | K3: 8000 | L3: 5700 | M3: 160000 | N3: 330000
A4: H29 | B4: 0.096 | C4: 24800 | D4: 19200 | E4: 540000 | F4: 0.039 | G4: 6200 | H4: 4800 | I4: 190000 | J4: 0.029 | K4: 8000 | L4: 5700 | M4: 160000 | N4: 330000
A5: H30 | B5: 0.106 | C5: 29600 | D5: 22000 | E5: 580000 | F5: 0.033 | G5: 9300 | H5: 6900 | I5: 190000 | J5: 0.027 | K5: 14900 | L5: 0 | M5: 160000 | N5: 330000
A6: R1 | B6: 0.106 | C6: 29600 | D6: 22000 | E6: 610000 | F6: 0.033 | G6: 9300 | H6: 6900 | I6: 190000 | J6: 0.027 | K6: 14900 | L6: 0 | M6: 160000 | N6: 330000
A7: R2 | B7: 0.106 | C7: 29600 | D7: 22000 | E7: 630000 | F7: 0.033 | G7: 9300 | H7: 6900 | I7: 190000 | J7: 0.027 | K7: 14900 | L7: 0 | M7: 170000 | N7: 330000
A8: R3 | B8: 0.106 | C8: 29600 | D8: 22000 | E8: 630000 | F8: 0.033 | G8: 9300 | H8: 6900 | I8: 190000 | J8: 0.027 | K8: 14900 | L8: 0 | M8: 170000 | N8: 430000
A9: R4 | B9: 0.106 | C9: 29600 | D9: 22000 | E9: 650000 | F9: 0.033 | G9: 9300 | H9: 6900 | I9: 200000 | J9: 0.027 | K9: 14900 | L9: 0 | M9: 170000 | N9: 430000
A10: R5 | B10: 0.106 | C10: 29600 | D10: 22000 | E10: 650000 | F10: 0.033 | G10: 9300 | H10: 6900 | I10: 220000 | J10: 0.027 | K10: 14900 | L10: 0 | M10: 170000 | N10: 430000
A11: R6
A12: R7
A13: R8
A14: R9
A15: R10
A16: R11
A17: R12
A18: R13
A19: R14
A20: R15
A21: R16
A22: R17
A23: R18
A24: R19
A25: R20

Sheet 賦課試算 (hidden)
A1: ="R"&試算!D1 -> R5 | B1: 年度 国保税計算表 | K1: 医 療 | W1: 後 期 | AI1: 介 護 | AU1: 基礎控除額
K2: 所得割 | N2: 均等割 | Q2: 平等割 | T2: 限度額 | W2: 所得割 | Z2: 均等割 | AC2: 平等割 | AF2: 限度額 | AI2: 所得割 | AL2: 均等割 | AO2: 平等割 | AR2: 限度額 | AU2: =VLOOKUP($A$1,'基本情報（毎年更新）'!$A$3:$N$50,14,0) -> 430000
B3: 軽減区分 | K3: =VLOOKUP($A$1,'基本情報（毎年更新）'!$A$3:$M$50,2,0) -> 0.106 | N3: =VLOOKUP($A$1,'基本情報（毎年更新）'!$A$3:$M$50,3,0) -> 29600 | Q3: =VLOOKUP($A$1,'基本情報（毎年更新）'!$A$3:$M$50,4,0) -> 22000 | T3: =VLOOKUP($A$1,'基本情報（毎年更新）'!$A$3:$M$50,5,0) -> 650000 | W3: =VLOOKUP($A$1,'基本情報（毎年更新）'!$A$3:$M$50,6,0) -> 0.033 | Z3: =VLOOKUP($A$1,'基本情報（毎年更新）'!$A$3:$M$50,7,0) -> 9300 | AC3: =VLOOKUP($A$1,'基本情報（毎年更新）'!$A$3:$M$50,8,0) -> 6900 | AF3: =VLOOKUP($A$1,'基本情報（毎年更新）'!$A$3:$M$50,9,0) -> 220000 | AI3: =VLOOKUP($A$1,'基本情報（毎年更新）'!$A$3:$M$50,10,0) -> 0.027 | AL3: =VLOOKUP($A$1,'基本情報（毎年更新）'!$A$3:$M$50,11,0) -> 14900 | AO3: =VLOOKUP($A$1,'基本情報（毎年更新）'!$A$3:$M$50,12,0) -> 0 | AR3: =VLOOKUP($A$1,'基本情報（毎年更新）'!$A$3:$M$50,13,0) -> 170000 | AU3: =VLOOKUP($A$1,'基本情報（毎年更新）'!$A$3:$M$11,13,0) -> 170000
B4: =軽減計算!J18 -> 7
A5: 医療欄の入力は以下の番号で入力 （介護欄はすべて「１」で入力） １：主 ２：擬主 ３：員 ４：擬同 ５：同 ６：擬継 ７：継 ８：旧被扶 ※４～７は特定同一世帯に該当する場合のみ入力！
E6: 軽減 | F6: =$B$4 -> 7 | G6: =$B$4 -> 7 | H6: 7 | I6: 7 | J6: 7 | K6: 7 | L6: 7 | M6: 7 | N6: 7 | O6: 7 | P6: 7 | Q6: 7
A7: No. | B7: 所得額 （基礎控除前） | F7: 4 | G7: 5 | H7: 6 | I7: 7 | J7: 8 | K7: 9 | L7: 10 | M7: 11 | N7: 12 | O7: 1 | P7: 2 | Q7: 3 | R7: 加入 月数 | T7: 同 | V7: 旧被扶 | X7: 医療分 | AD7: 後期分 | AJ7: 介護分
F8: 4 | G8: 5 | H8: 6 | I8: 7 | J8: 8 | K8: 9 | L8: 10 | M8: 11 | N8: 12 | O8: 1 | T8: 継 | V8: 未就学 | X8: 所得割 | AA8: 均等割 | AD8: 所得割 | AG8: 均等割 | AJ8: 所得割 | AM8: 均等割
A9: 1 | B9: =給与所得計算!F26+年金所得計算!D74+試算!AV25 -> 0 | E9: 医療 | F9: =IF(加入情報!K7=0,"",加入情報!K7) -> 2 | G9: =IF(加入情報!L7=0,"",加入情報!L7) -> 2 | H9: =IF(加入情報!M7=0,"",加入情報!M7) -> 2 | I9: =IF(加入情報!N7=0,"",加入情報!N7) -> 2 | J9: =IF(加入情報!O7=0,"",加入情報!O7) -> 2 | K9: =IF(加入情報!P7=0,"",加入情報!P7) -> 2 | L9: =IF(加入情報!Q7=0,"",加入情報!Q7) -> 2 | M9: =IF(加入情報!R7=0,"",加入情報!R7) -> 2 | N9: =IF(加入情報!S7=0,"",加入情報!S7) -> 2 | O9: =IF(加入情報!T7=0,"",加入情報!T7) -> 2 | P9: =IF(加入情報!U7=0,"",加入情報!U7) -> 2 | Q9: =IF(加入情報!V7=0,"",加入情報!V7) -> 2 | R9: =COUNTIF(F9:Q9,1)+COUNTIF(F9:Q9,3)+COUNTIF(F9:Q9,8) -> 0 | T9: =COUNTIF(F9:Q9,4)+COUNTIF(F9:Q9,5) -> 0 | V9: =COUNTIF(F9:Q9,8) -> 0 | X9: =IF($R9=0,0,($R9-$V9)/$R9*$X21*$R9/12) -> 0 | AA9: =SUM(F18:Q18)+SUM(F15:Q15) -> 0 | AD9: =IF($R9=0,0,($R9-$V9)/$R9*AD21*$R9/12) -> 0 | AG9: =SUM(F19:Q19)+SUM(F16:Q16) -> 0 | AJ9: =AJ21*$R10/12 -> 0 | AM9: =SUM(F20:Q20) -> 0
E10: 介護 | F10: =IFERROR(IF(AND(F9=1,加入情報!K9<65,加入情報!K9>=40),1,""),"") ->  | G10: =IFERROR(IF(AND(G9=1,加入情報!L9<65,加入情報!L9>=40),1,""),"") ->  | H10: =IFERROR(IF(AND(H9=1,加入情報!M9<65,加入情報!M9>=40),1,""),"") ->  | I10: =IFERROR(IF(AND(I9=1,加入情報!N9<65,加入情報!N9>=40),1,""),"") ->  | J10: =IFERROR(IF(AND(J9=1,加入情報!O9<65,加入情報!O9>=40),1,""),"") ->  | K10: =IFERROR(IF(AND(K9=1,加入情報!P9<65,加入情報!P9>=40),1,""),"") ->  | L10: =IFERROR(IF(AND(L9=1,加入情報!Q9<65,加入情報!Q9>=40),1,""),"") ->  | M10: =IFERROR(IF(AND(M9=1,加入情報!R9<65,加入情報!R9>=40),1,""),"") ->  | N10: =IFERROR(IF(AND(N9=1,加入情報!S9<65,加入情報!S9>=40),1,""),"") ->  | O10: =IFERROR(IF(AND(O9=1,加入情報!T9<65,加入情報!T9>=40),1,""),"") ->  | P10: =IFERROR(IF(AND(P9=1,加入情報!U9<65,加入情報!U9>=40),1,""),"") ->  | Q10: =IFERROR(IF(AND(Q9=1,加入情報!V9<65,加入情報!V9>=40),1,""),"") ->  | R10: =SUBTOTAL(9,F10:Q10) -> 0 | T10: =COUNTIF(F9:Q9,6)+COUNTIF(F9:Q9,7) -> 0 | V10: =IF(加入情報!V9<7,1,0) -> 0
E11: 特定
D12: 予備 | E12: 医療
E13: 後期
E14: 介護
D15: 未就学軽減 | E15: 医療 | F15: =IF($V10=1,IF(OR(F9=1,F9=3),-$N$3/12*(1-F$6/10)/2,0),0) -> 0 | G15: =IF($V10=1,IF(OR(G9=1,G9=3),-$N$3/12*(1-G$6/10)/2,0),0) -> 0 | H15: 0 | I15: 0 | J15: 0 | K15: 0 | L15: 0 | M15: 0 | N15: 0 | O15: 0 | P15: 0 | Q15: 0
E16: 後期 | F16: =IF($V10=1,IF(OR(F9=1,F9=3),-$Z$3/12*(1-F$6/10)/2,0),0) -> 0 | G16: =IF($V10=1,IF(OR(G9=1,G9=3),-$Z$3/12*(1-G$6/10)/2,0),0) -> 0 | H16: =IF($V10=1,IF(OR(H9=1,H9=3),-$Z$3/12*(1-H$6/10)/2,0),0) -> 0 | I16: 0 | J16: 0 | K16: 0 | L16: 0 | M16: 0 | N16: 0 | O16: 0 | P16: =IF($V10=1,IF(OR(P9=1,P9=3),-$Z$3/12*(1-P$6/10)/2,0),0) -> 0 | Q16: 0
E17: 介護
D18: 均等割用 | E18: 医療 | F18: =IF(OR(F9=1,F9=3),$N$3/12*(1-F$6/10),IF(AND(F9=8,F$6<5),$N$3/12*0.5,IF(F9=8,$N$3/12*(1-F$6/10),0))) -> 0 | G18: =IF(OR(G9=1,G9=3),$N$3/12*(1-G$6/10),IF(AND(G9=8,G$6<5),$N$3/12*0.5,IF(G9=8,$N$3/12*(1-G$6/10),0))) -> 0 | H18: =IF(OR(H9=1,H9=3),$N$3/12*(1-H$6/10),IF(AND(H9=8,H$6<5),$N$3/12*0.5,IF(H9=8,$N$3/12*(1-H$6/10),0))) -> 0 | I18: 0 | J18: 0 | K18: =IF(OR(K9=1,K9=3),$N$3/12*(1-K$6/10),IF(AND(K9=8,K$6<5),$N$3/12*0.5,IF(K9=8,$N$3/12*(1-K$6/10),0))) -> 0 | L18: =IF(OR(L9=1,L9=3),$N$3/12*(1-L$6/10),IF(AND(L9=8,L$6<5),$N$3/12*0.5,IF(L9=8,$N$3/12*(1-L$6/10),0))) -> 0 | M18: 0 | N18: 0 | O18: 0 | P18: 0 | Q18: 0
E19: 後期 | F19: =IF(OR(F9=1,F9=3),$Z$3/12*(1-F$6/10),IF(AND(F9=8,F$6<5),$Z$3/12*0.5,IF(F9=8,$Z$3/12*(1-F$6/10),0))) -> 0 | G19: =IF(OR(G9=1,G9=3),$Z$3/12*(1-G$6/10),IF(AND(G9=8,G$6<5),$Z$3/12*0.5,IF(G9=8,$Z$3/12*(1-G$6/10),0))) -> 0 | H19: =IF(OR(H9=1,H9=3),$Z$3/12*(1-H$6/10),IF(AND(H9=8,H$6<5),$Z$3/12*0.5,IF(H9=8,$Z$3/12*(1-H$6/10),0))) -> 0 | I19: 0 | J19: 0 | K19: 0 | L19: 0 | M19: 0 | N19: 0 | O19: 0 | P19: 0 | Q19: 0
E20: 介護 | F20: =IF(F10=1,$AL$3/12*(1-F$6/10),0) -> 0 | G20: =IF(G10=1,$AL$3/12*(1-G$6/10),0) -> 0 | H20: 0 | I20: 0 | J20: 0 | K20: 0 | L20: 0 | M20: 0 | N20: 0 | O20: 0 | P20: 0 | Q20: 0
D21: 限度額用 | E21: 医療 | F21: =IF(OR(F9=1,F9=3,F9=8),$X21+$AA21,0) -> 0 | G21: =IF(OR(G9=1,G9=3,G9=8),$X21+$AA21,0) -> 0 | H21: =IF(OR(H9=1,H9=3,H9=8),$X21+$AA21,0) -> 0 | I21: 0 | J21: 0 | K21: 0 | L21: 0 | M21: 0 | N21: 0 | O21: 0 | P21: 0 | Q21: 0 | V21: 限度額判定用 | X21: =IF(B9-$AU$2>0,ROUNDDOWN((B9-$AU$2)*$K$3,0),0) -> 0 | AA21: =IF(V10=0,$N$3*(1-0.1*$B$4),$N$3*(1-0.1*$B$4)/2) -> 8880 | AD21: =IF($B9-$AU$2>0,ROUNDDOWN(($B9-$AU$2)*$W$3,0),0) -> 0 | AG21: =IF(V10=0,$Z$3*(1-0.1*$B$4),$Z$3*(1-0.1*$B$4)/2) -> 2790 | AJ21: =IF($B9-$AU$2>0,ROUNDDOWN(($B9-$AU$2)*$AI$3,0),0) -> 0 | AM21: =IF(V10=0,$AL$3*(1-0.1*$B$4),$AL$3*(1-0.1*$B$4)/2) -> 4470
E22: 後期 | F22: =IF(OR(F9=1,F9=3,F9=8),$AD21+$AG21,0) -> 0 | G22: =IF(OR(G9=1,G9=3,G9=8),$AD21+$AG21,0) -> 0 | H22: =IF(OR(H9=1,H9=3,H9=8),$AD21+$AG21,0) -> 0 | I22: 0 | J22: 0 | K22: 0 | L22: 0 | M22: 0 | N22: 0 | O22: 0 | P22: 0 | Q22: 0
E23: 介護 | F23: =IF(F10=1,$AJ21+$AM21,0) -> 0 | G23: =IF(G10=1,$AJ21+$AM21,0) -> 0 | H23: =IF(H10=1,$AJ21+$AM21,0) -> 0 | I23: 0 | J23: 0 | K23: 0 | L23: 0 | M23: 0 | N23: 0 | O23: 0 | P23: 0 | Q23: 0
A24: 2 | B24: =給与所得計算!F27+年金所得計算!D75+試算!AV27 -> 0 | E24: 医療 | F24: =IF(加入情報!K10=0,"",加入情報!K10) ->  | G24: =IF(加入情報!L10=0,"",加入情報!L10) ->  | H24: =IF(加入情報!M10=0,"",加入情報!M10) ->  | I24: =IF(加入情報!N10=0,"",加入情報!N10) ->  | J24: =IF(加入情報!O10=0,"",加入情報!O10) ->  | K24: =IF(加入情報!P10=0,"",加入情報!P10) ->  | L24: =IF(加入情報!Q10=0,"",加入情報!Q10) ->  | M24: =IF(加入情報!R10=0,"",加入情報!R10) ->  | N24: =IF(加入情報!S10=0,"",加入情報!S10) ->  | O24: =IF(加入情報!T10=0,"",加入情報!T10) ->  | P24: =IF(加入情報!U10=0,"",加入情報!U10) ->  | Q24: =IF(加入情報!V10=0,"",加入情報!V10) ->  | R24: =COUNTIF(F24:Q24,1)+COUNTIF(F24:Q24,3)+COUNTIF(F24:Q24,8) -> 0 | T24: =COUNTIF(F24:Q24,4)+COUNTIF(F24:Q24,5) -> 0 | V24: =COUNTIF(F24:Q24,8) -> 0 | X24: =IF($R24=0,0,($R24-$V24)/$R24*$X36*$R24/12) -> 0 | AA24: =SUM(F33:Q33)+SUM(F30:Q30) -> 0 | AD24: =IF($R24=0,0,($R24-$V24)/$R24*AD36*$R24/12) -> 0 | AG24: =SUM(F34:Q34)+SUM(F31:Q31) -> 0 | AJ24: =AJ36*$R25/12 -> 0 | AM24: =SUM(F35:Q35) -> 0
E25: 介護 | F25: =IFERROR(IF(AND(F24=3,加入情報!K12<65,加入情報!K12>=40),1,""),"") ->  | G25: =IFERROR(IF(AND(G24=3,加入情報!L12<65,加入情報!L12>=40),1,""),"") ->  | H25: =IFERROR(IF(AND(H24=3,加入情報!M12<65,加入情報!M12>=40),1,""),"") ->  | I25: =IFERROR(IF(AND(I24=3,加入情報!N12<65,加入情報!N12>=40),1,""),"") ->  | J25: =IFERROR(IF(AND(J24=3,加入情報!O12<65,加入情報!O12>=40),1,""),"") ->  | K25: =IFERROR(IF(AND(K24=3,加入情報!P12<65,加入情報!P12>=40),1,""),"") ->  | L25: =IFERROR(IF(AND(L24=3,加入情報!Q12<65,加入情報!Q12>=40),1,""),"") ->  | M25: =IFERROR(IF(AND(M24=3,加入情報!R12<65,加入情報!R12>=40),1,""),"") ->  | N25: =IFERROR(IF(AND(N24=3,加入情報!S12<65,加入情報!S12>=40),1,""),"") ->  | O25: =IFERROR(IF(AND(O24=3,加入情報!T12<65,加入情報!T12>=40),1,""),"") ->  | P25: =IFERROR(IF(AND(P24=3,加入情報!U12<65,加入情報!U12>=40),1,""),"") ->  | Q25: =IFERROR(IF(AND(Q24=3,加入情報!V12<65,加入情報!V12>=40),1,""),"") ->  | R25: =SUBTOTAL(9,F25:Q25) -> 0 | T25: =COUNTIF(F24:Q24,6)+COUNTIF(F24:Q24,7) -> 0 | V25: =IF(加入情報!V12<7,1,0) -> 0
E26: 特定
D27: 予備 | E27: 医療
E28: 後期
E29: 介護
D30: 未就学軽減 | E30: 医療 | F30: =IF($V25=1,IF(OR(F24=1,F24=3),-$N$3/12*(1-F$6/10)/2,0),0) -> 0 | G30: =IF($V25=1,IF(OR(G24=1,G24=3),-$N$3/12*(1-G$6/10)/2,0),0) -> 0 | H30: 0 | I30: 0 | J30: 0 | K30: 0 | L30: 0 | M30: 0 | N30: 0 | O30: 0 | P30: 0 | Q30: 0
E31: 後期 | F31: =IF($V25=1,IF(OR(F24=1,F24=3),-$Z$3/12*(1-F$6/10)/2,0),0) -> 0 | G31: =IF($V25=1,IF(OR(G24=1,G24=3),-$Z$3/12*(1-G$6/10)/2,0),0) -> 0 | H31: =IF($V25=1,IF(OR(H24=1,H24=3),-$Z$3/12*(1-H$6/10)/2,0),0) -> 0 | I31: =IF($V25=1,IF(OR(I24=1,I24=3),-$Z$3/12*(1-I$6/10)/2,0),0) -> 0 | J31: 0 | K31: 0 | L31: 0 | M31: 0 | N31: 0 | O31: 0 | P31: =IF($V25=1,IF(OR(P24=1,P24=3),-$Z$3/12*(1-P$6/10)/2,0),0) -> 0 | Q31: =IF($V25=1,IF(OR(Q24=1,Q24=3),-$Z$3/12*(1-Q$6/10)/2,0),0) -> 0
E32: 介護
D33: 均等割用 | E33: 医療 | F33: =IF(OR(F24=1,F24=3),$N$3/12*(1-F$6/10),IF(AND(F24=8,F$6<5),$N$3/12*0.5,IF(F24=8,$N$3/12*(1-F$6/10),0))) -> 0 | G33: =IF(OR(G24=1,G24=3),$N$3/12*(1-G$6/10),IF(AND(G24=8,G$6<5),$N$3/12*0.5,IF(G24=8,$N$3/12*(1-G$6/10),0))) -> 0 | H33: =IF(OR(H24=1,H24=3),$N$3/12*(1-H$6/10),IF(AND(H24=8,H$6<5),$N$3/12*0.5,IF(H24=8,$N$3/12*(1-H$6/10),0))) -> 0 | I33: =IF(OR(I24=1,I24=3),$N$3/12*(1-I$6/10),IF(AND(I24=8,I$6<5),$N$3/12*0.5,IF(I24=8,$N$3/12*(1-I$6/10),0))) -> 0 | J33: 0 | K33: =IF(OR(K24=1,K24=3),$N$3/12*(1-K$6/10),IF(AND(K24=8,K$6<5),$N$3/12*0.5,IF(K24=8,$N$3/12*(1-K$6/10),0))) -> 0 | L33: =IF(OR(L24=1,L24=3),$N$3/12*(1-L$6/10),IF(AND(L24=8,L$6<5),$N$3/12*0.5,IF(L24=8,$N$3/12*(1-L$6/10),0))) -> 0 | M33: 0 | N33: 0 | O33: 0 | P33: 0 | Q33: 0
E34: 後期 | F34: =IF(OR(F24=1,F24=3),$Z$3/12*(1-F$6/10),IF(AND(F24=8,F$6<5),$Z$3/12*0.5,IF(F24=8,$Z$3/12*(1-F$6/10),0))) -> 0 | G34: =IF(OR(G24=1,G24=3),$Z$3/12*(1-G$6/10),IF(AND(G24=8,G$6<5),$Z$3/12*0.5,IF(G24=8,$Z$3/12*(1-G$6/10),0))) -> 0 | H34: 0 | I34: 0 | J34: 0 | K34: 0 | L34: 0 | M34: 0 | N34: 0 | O34: 0 | P34: 0 | Q34: 0
E35: 介護 | F35: =IF(F25=1,$AL$3/12*(1-F$6/10),0) -> 0 | G35: =IF(G25=1,$AL$3/12*(1-G$6/10),0) -> 0 | H35: 0 | I35: 0 | J35: 0 | K35: 0 | L35: 0 | M35: 0 | N35: 0 | O35: 0 | P35: 0 | Q35: 0
D36: 限度額用 | E36: 医療 | F36: =IF(OR(F24=1,F24=3,F24=8),$X36+$AA36,0) -> 0 | G36: =IF(OR(G24=1,G24=3,G24=8),$X36+$AA36,0) -> 0 | H36: 0 | I36: 0 | J36: 0 | K36: 0 | L36: 0 | M36: 0 | N36: 0 | O36: 0 | P36: 0 | Q36: 0 | V36: 限度額判定用 | X36: =IF(B24-$AU$2>0,ROUNDDOWN((B24-$AU$2)*$K$3,0),0) -> 0 | AA36: =IF(V25=0,$N$3*(1-0.1*$B$4),$N$3*(1-0.1*$B$4)/2) -> 8880 | AD36: =IF($B24-$AU$2>0,ROUNDDOWN(($B24-$AU$2)*$W$3,0),0) -> 0 | AG36: =IF(V25=0,$Z$3*(1-0.1*$B$4),$Z$3*(1-0.1*$B$4)/2) -> 2790 | AJ36: =IF($B24-$AU$2>0,ROUNDDOWN(($B24-$AU$2)*$AI$3,0),0) -> 0 | AM36: =IF(V25=0,$AL$3*(1-0.1*$B$4),$AL$3*(1-0.1*$B$4)/2) -> 4470
E37: 後期 | F37: =IF(OR(F24=1,F24=3,F24=8),$AD36+$AG36,0) -> 0 | G37: =IF(OR(G24=1,G24=3,G24=8),$AD36+$AG36,0) -> 0 | H37: =IF(OR(H24=1,H24=3,H24=8),$AD36+$AG36,0) -> 0 | I37: =IF(OR(I24=1,I24=3,I24=8),$AD36+$AG36,0) -> 0 | J37: =IF(OR(J24=1,J24=3,J24=8),$AD36+$AG36,0) -> 0 | K37: =IF(OR(K24=1,K24=3,K24=8),$AD36+$AG36,0) -> 0 | L37: =IF(OR(L24=1,L24=3,L24=8),$AD36+$AG36,0) -> 0 | M37: =IF(OR(M24=1,M24=3,M24=8),$AD36+$AG36,0) -> 0 | N37: =IF(OR(N24=1,N24=3,N24=8),$AD36+$AG36,0) -> 0 | O37: =IF(OR(O24=1,O24=3,O24=8),$AD36+$AG36,0) -> 0 | P37: =IF(OR(P24=1,P24=3,P24=8),$AD36+$AG36,0) -> 0 | Q37: =IF(OR(Q24=1,Q24=3,Q24=8),$AD36+$AG36,0) -> 0
E38: 介護 | F38: =IF(F25=1,$AJ36+$AM36,0) -> 0 | G38: =IF(G25=1,$AJ36+$AM36,0) -> 0 | H38: 0 | I38: 0 | J38: 0 | K38: 0 | L38: 0 | M38: 0 | N38: 0 | O38: 0 | P38: 0 | Q38: 0
A39: 3 | B39: =給与所得計算!F28+年金所得計算!D76+試算!AV29 -> 0 | E39: 医療 | F39: =IF(加入情報!K13=0,"",加入情報!K13) ->  | G39: =IF(加入情報!L13=0,"",加入情報!L13) ->  | H39: =IF(加入情報!M13=0,"",加入情報!M13) ->  | I39: =IF(加入情報!N13=0,"",加入情報!N13) ->  | J39: =IF(加入情報!O13=0,"",加入情報!O13) ->  | K39: =IF(加入情報!P13=0,"",加入情報!P13) ->  | L39: =IF(加入情報!Q13=0,"",加入情報!Q13) ->  | M39: =IF(加入情報!R13=0,"",加入情報!R13) ->  | N39: =IF(加入情報!S13=0,"",加入情報!S13) ->  | O39: =IF(加入情報!T13=0,"",加入情報!T13) ->  | P39: =IF(加入情報!U13=0,"",加入情報!U13) ->  | Q39: =IF(加入情報!V13=0,"",加入情報!V13) ->  | R39: =COUNTIF(F39:Q39,1)+COUNTIF(F39:Q39,3)+COUNTIF(F39:Q39,8) -> 0 | T39: =COUNTIF(F39:Q39,4)+COUNTIF(F39:Q39,5) -> 0 | V39: =COUNTIF(F39:Q39,8) -> 0 | X39: =IF($R39=0,0,($R39-$V39)/$R39*$X51*$R39/12) -> 0 | AA39: =SUM(F48:Q48)+SUM(F45:Q45) -> 0 | AD39: =IF($R39=0,0,($R39-$V39)/$R39*AD51*$R39/12) -> 0 | AG39: =SUM(F49:Q49)+SUM(F46:Q46) -> 0 | AJ39: =AJ51*$R40/12 -> 0 | AM39: =SUM(F50:Q50) -> 0
E40: 介護 | F40: =IFERROR(IF(AND(F39=3,加入情報!K15<65,加入情報!K15>=40),1,""),"") ->  | G40: =IFERROR(IF(AND(G39=3,加入情報!L15<65,加入情報!L15>=40),1,""),"") ->  | H40: =IFERROR(IF(AND(H39=3,加入情報!M15<65,加入情報!M15>=40),1,""),"") ->  | I40: =IFERROR(IF(AND(I39=3,加入情報!N15<65,加入情報!N15>=40),1,""),"") ->  | J40: =IFERROR(IF(AND(J39=3,加入情報!O15<65,加入情報!O15>=40),1,""),"") ->  | K40: =IFERROR(IF(AND(K39=3,加入情報!P15<65,加入情報!P15>=40),1,""),"") ->  | L40: =IFERROR(IF(AND(L39=3,加入情報!Q15<65,加入情報!Q15>=40),1,""),"") ->  | M40: =IFERROR(IF(AND(M39=3,加入情報!R15<65,加入情報!R15>=40),1,""),"") ->  | N40: =IFERROR(IF(AND(N39=3,加入情報!S15<65,加入情報!S15>=40),1,""),"") ->  | O40: =IFERROR(IF(AND(O39=3,加入情報!T15<65,加入情報!T15>=40),1,""),"") ->  | P40: =IFERROR(IF(AND(P39=3,加入情報!U15<65,加入情報!U15>=40),1,""),"") ->  | Q40: =IFERROR(IF(AND(Q39=3,加入情報!V15<65,加入情報!V15>=40),1,""),"") ->  | R40: =SUBTOTAL(9,F40:Q40) -> 0 | T40: =COUNTIF(F39:Q39,6)+COUNTIF(F39:Q39,7) -> 0 | V40: =IF(加入情報!V15<7,1,0) -> 0
E41: 特定
D42: 予備 | E42: 医療
E43: 後期
E44: 介護
D45: 未就学軽減 | E45: 医療 | F45: =IF($V40=1,IF(OR(F39=1,F39=3),-$N$3/12*(1-F$6/10)/2,0),0) -> 0 | G45: =IF($V40=1,IF(OR(G39=1,G39=3),-$N$3/12*(1-G$6/10)/2,0),0) -> 0 | H45: 0 | I45: 0 | J45: 0 | K45: 0 | L45: 0 | M45: 0 | N45: 0 | O45: 0 | P45: 0 | Q45: 0
E46: 後期 | F46: =IF($V40=1,IF(OR(F39=1,F39=3),-$Z$3/12*(1-F$6/10)/2,0),0) -> 0 | G46: =IF($V40=1,IF(OR(G39=1,G39=3),-$Z$3/12*(1-G$6/10)/2,0),0) -> 0 | H46: =IF($V40=1,IF(OR(H39=1,H39=3),-$Z$3/12*(1-H$6/10)/2,0),0) -> 0 | I46: =IF($V40=1,IF(OR(I39=1,I39=3),-$Z$3/12*(1-I$6/10)/2,0),0) -> 0 | J46: 0 | K46: 0 | L46: 0 | M46: 0 | N46: 0 | O46: 0 | P46: =IF($V40=1,IF(OR(P39=1,P39=3),-$Z$3/12*(1-P$6/10)/2,0),0) -> 0 | Q46: =IF($V40=1,IF(OR(Q39=1,Q39=3),-$Z$3/12*(1-Q$6/10)/2,0),0) -> 0
E47: 介護
D48: 均等割用 | E48: 医療 | F48: =IF(OR(F39=1,F39=3),$N$3/12*(1-F$6/10),IF(AND(F39=8,F$6<5),$N$3/12*0.5,IF(F39=8,$N$3/12*(1-F$6/10),0))) -> 0 | G48: 0 | H48: =IF(OR(H39=1,H39=3),$N$3/12*(1-H$6/10),IF(AND(H39=8,H$6<5),$N$3/12*0.5,IF(H39=8,$N$3/12*(1-H$6/10),0))) -> 0 | I48: =IF(OR(I39=1,I39=3),$N$3/12*(1-I$6/10),IF(AND(I39=8,I$6<5),$N$3/12*0.5,IF(I39=8,$N$3/12*(1-I$6/10),0))) -> 0 | J48: 0 | K48: =IF(OR(K39=1,K39=3),$N$3/12*(1-K$6/10),IF(AND(K39=8,K$6<5),$N$3/12*0.5,IF(K39=8,$N$3/12*(1-K$6/10),0))) -> 0 | L48: =IF(OR(L39=1,L39=3),$N$3/12*(1-L$6/10),IF(AND(L39=8,L$6<5),$N$3/12*0.5,IF(L39=8,$N$3/12*(1-L$6/10),0))) -> 0 | M48: 0 | N48: 0 | O48: 0 | P48: 0 | Q48: 0
E49: 後期 | F49: =IF(OR(F39=1,F39=3),$Z$3/12*(1-F$6/10),IF(AND(F39=8,F$6<5),$Z$3/12*0.5,IF(F39=8,$Z$3/12*(1-F$6/10),0))) -> 0 | G49: =IF(OR(G39=1,G39=3),$Z$3/12*(1-G$6/10),IF(AND(G39=8,G$6<5),$Z$3/12*0.5,IF(G39=8,$Z$3/12*(1-G$6/10),0))) -> 0 | H49: 0 | I49: 0 | J49: 0 | K49: 0 | L49: 0 | M49: 0 | N49: 0 | O49: 0 | P49: 0 | Q49: 0
E50: 介護 | F50: =IF(F40=1,$AL$3/12*(1-F$6/10),0) -> 0 | G50: =IF(G40=1,$AL$3/12*(1-G$6/10),0) -> 0 | H50: 0 | I50: 0 | J50: 0 | K50: 0 | L50: 0 | M50: 0 | N50: 0 | O50: 0 | P50: 0 | Q50: 0
D51: 限度額用 | E51: 医療 | F51: =IF(OR(F39=1,F39=3,F39=8),$X51+$AA51,0) -> 0 | G51: =IF(OR(G39=1,G39=3,G39=8),$X51+$AA51,0) -> 0 | H51: 0 | I51: 0 | J51: 0 | K51: 0 | L51: 0 | M51: 0 | N51: 0 | O51: 0 | P51: 0 | Q51: 0 | V51: 限度額判定用 | X51: =IF(B39-$AU$2>0,ROUNDDOWN((B39-$AU$2)*$K$3,0),0) -> 0 | AA51: =IF(V40=0,$N$3*(1-0.1*$B$4),$N$3*(1-0.1*$B$4)/2) -> 8880 | AD51: =IF($B39-$AU$2>0,ROUNDDOWN(($B39-$AU$2)*$W$3,0),0) -> 0 | AG51: =IF(V40=0,$Z$3*(1-0.1*$B$4),$Z$3*(1-0.1*$B$4)/2) -> 2790 | AJ51: =IF($B39-$AU$2>0,ROUNDDOWN(($B39-$AU$2)*$AI$3,0),0) -> 0 | AM51: =IF(V40=0,$AL$3*(1-0.1*$B$4),$AL$3*(1-0.1*$B$4)/2) -> 4470
E52: 後期 | F52: =IF(OR(F39=1,F39=3,F39=8),$AD51+$AG51,0) -> 0 | G52: =IF(OR(G39=1,G39=3,G39=8),$AD51+$AG51,0) -> 0 | H52: =IF(OR(H39=1,H39=3,H39=8),$AD51+$AG51,0) -> 0 | I52: =IF(OR(I39=1,I39=3,I39=8),$AD51+$AG51,0) -> 0 | J52: =IF(OR(J39=1,J39=3,J39=8),$AD51+$AG51,0) -> 0 | K52: =IF(OR(K39=1,K39=3,K39=8),$AD51+$AG51,0) -> 0 | L52: =IF(OR(L39=1,L39=3,L39=8),$AD51+$AG51,0) -> 0 | M52: =IF(OR(M39=1,M39=3,M39=8),$AD51+$AG51,0) -> 0 | N52: =IF(OR(N39=1,N39=3,N39=8),$AD51+$AG51,0) -> 0 | O52: =IF(OR(O39=1,O39=3,O39=8),$AD51+$AG51,0) -> 0 | P52: =IF(OR(P39=1,P39=3,P39=8),$AD51+$AG51,0) -> 0 | Q52: =IF(OR(Q39=1,Q39=3,Q39=8),$AD51+$AG51,0) -> 0
E53: 介護 | F53: =IF(F40=1,$AJ51+$AM51,0) -> 0 | G53: =IF(G40=1,$AJ51+$AM51,0) -> 0 | H53: 0 | I53: 0 | J53: 0 | K53: 0 | L53: 0 | M53: 0 | N53: 0 | O53: 0 | P53: 0 | Q53: 0
A54: 4 | B54: =給与所得計算!F29+年金所得計算!D77+試算!AV31 -> 0 | E54: 医療 | F54: =IF(加入情報!K16=0,"",加入情報!K16) ->  | G54: =IF(加入情報!L16=0,"",加入情報!L16) ->  | H54: =IF(加入情報!M16=0,"",加入情報!M16) ->  | I54: =IF(加入情報!N16=0,"",加入情報!N16) ->  | J54: =IF(加入情報!O16=0,"",加入情報!O16) ->  | K54: =IF(加入情報!P16=0,"",加入情報!P16) ->  | L54: =IF(加入情報!Q16=0,"",加入情報!Q16) ->  | M54: =IF(加入情報!R16=0,"",加入情報!R16) ->  | N54: =IF(加入情報!S16=0,"",加入情報!S16) ->  | O54: =IF(加入情報!T16=0,"",加入情報!T16) ->  | P54: =IF(加入情報!U16=0,"",加入情報!U16) ->  | Q54: =IF(加入情報!V16=0,"",加入情報!V16) ->  | R54: =COUNTIF(F54:Q54,1)+COUNTIF(F54:Q54,3)+COUNTIF(F54:Q54,8) -> 0 | T54: =COUNTIF(F54:Q54,4)+COUNTIF(F54:Q54,5) -> 0 | V54: =COUNTIF(F54:Q54,8) -> 0 | X54: =IF($R54=0,0,($R54-$V54)/$R54*$X66*$R54/12) -> 0 | AA54: =SUM(F63:Q63)+SUM(F60:Q60) -> 0 | AD54: =IF($R54=0,0,($R54-$V54)/$R54*AD66*$R54/12) -> 0 | AG54: =SUM(F64:Q64)+SUM(F61:Q61) -> 0 | AJ54: =AJ66*$R55/12 -> 0 | AM54: =SUM(F65:Q65) -> 0
E55: 介護 | F55: =IFERROR(IF(AND(F54=3,加入情報!K18<65,加入情報!K18>=40),1,""),"") ->  | G55: =IFERROR(IF(AND(G54=3,加入情報!L18<65,加入情報!L18>=40),1,""),"") ->  | H55: =IFERROR(IF(AND(H54=3,加入情報!M18<65,加入情報!M18>=40),1,""),"") ->  | I55: =IFERROR(IF(AND(I54=3,加入情報!N18<65,加入情報!N18>=40),1,""),"") ->  | J55: =IFERROR(IF(AND(J54=3,加入情報!O18<65,加入情報!O18>=40),1,""),"") ->  | K55: =IFERROR(IF(AND(K54=3,加入情報!P18<65,加入情報!P18>=40),1,""),"") ->  | L55: =IFERROR(IF(AND(L54=3,加入情報!Q18<65,加入情報!Q18>=40),1,""),"") ->  | M55: =IFERROR(IF(AND(M54=3,加入情報!R18<65,加入情報!R18>=40),1,""),"") ->  | N55: =IFERROR(IF(AND(N54=3,加入情報!S18<65,加入情報!S18>=40),1,""),"") ->  | O55: =IFERROR(IF(AND(O54=3,加入情報!T18<65,加入情報!T18>=40),1,""),"") ->  | P55: =IFERROR(IF(AND(P54=3,加入情報!U18<65,加入情報!U18>=40),1,""),"") ->  | Q55: =IFERROR(IF(AND(Q54=3,加入情報!V18<65,加入情報!V18>=40),1,""),"") ->  | R55: =SUBTOTAL(9,F55:Q55) -> 0 | T55: =COUNTIF(F54:Q54,6)+COUNTIF(F54:Q54,7) -> 0 | V55: =IF(加入情報!V18<7,1,0) -> 0
E56: 特定
D57: 予備 | E57: 医療
E58: 後期
E59: 介護
D60: 未就学軽減 | E60: 医療 | F60: =IF($V55=1,IF(OR(F54=1,F54=3),-$N$3/12*(1-F$6/10)/2,0),0) -> 0 | G60: =IF($V55=1,IF(OR(G54=1,G54=3),-$N$3/12*(1-G$6/10)/2,0),0) -> 0 | H60: 0 | I60: 0 | J60: 0 | K60: 0 | L60: 0 | M60: 0 | N60: 0 | O60: 0 | P60: 0 | Q60: 0
E61: 後期 | F61: =IF($V55=1,IF(OR(F54=1,F54=3),-$Z$3/12*(1-F$6/10)/2,0),0) -> 0 | G61: =IF($V55=1,IF(OR(G54=1,G54=3),-$Z$3/12*(1-G$6/10)/2,0),0) -> 0 | H61: =IF($V55=1,IF(OR(H54=1,H54=3),-$Z$3/12*(1-H$6/10)/2,0),0) -> 0 | I61: =IF($V55=1,IF(OR(I54=1,I54=3),-$Z$3/12*(1-I$6/10)/2,0),0) -> 0 | J61: 0 | K61: 0 | L61: 0 | M61: 0 | N61: 0 | O61: 0 | P61: =IF($V55=1,IF(OR(P54=1,P54=3),-$Z$3/12*(1-P$6/10)/2,0),0) -> 0 | Q61: =IF($V55=1,IF(OR(Q54=1,Q54=3),-$Z$3/12*(1-Q$6/10)/2,0),0) -> 0
E62: 介護
D63: 均等割用 | E63: 医療 | F63: =IF(OR(F54=1,F54=3),$N$3/12*(1-F$6/10),IF(AND(F54=8,F$6<5),$N$3/12*0.5,IF(F54=8,$N$3/12*(1-F$6/10),0))) -> 0 | G63: 0 | H63: =IF(OR(H54=1,H54=3),$N$3/12*(1-H$6/10),IF(AND(H54=8,H$6<5),$N$3/12*0.5,IF(H54=8,$N$3/12*(1-H$6/10),0))) -> 0 | I63: =IF(OR(I54=1,I54=3),$N$3/12*(1-I$6/10),IF(AND(I54=8,I$6<5),$N$3/12*0.5,IF(I54=8,$N$3/12*(1-I$6/10),0))) -> 0 | J63: 0 | K63: =IF(OR(K54=1,K54=3),$N$3/12*(1-K$6/10),IF(AND(K54=8,K$6<5),$N$3/12*0.5,IF(K54=8,$N$3/12*(1-K$6/10),0))) -> 0 | L63: =IF(OR(L54=1,L54=3),$N$3/12*(1-L$6/10),IF(AND(L54=8,L$6<5),$N$3/12*0.5,IF(L54=8,$N$3/12*(1-L$6/10),0))) -> 0 | M63: 0 | N63: 0 | O63: 0 | P63: 0 | Q63: 0
E64: 後期 | F64: =IF(OR(F54=1,F54=3),$Z$3/12*(1-F$6/10),IF(AND(F54=8,F$6<5),$Z$3/12*0.5,IF(F54=8,$Z$3/12*(1-F$6/10),0))) -> 0 | G64: =IF(OR(G54=1,G54=3),$Z$3/12*(1-G$6/10),IF(AND(G54=8,G$6<5),$Z$3/12*0.5,IF(G54=8,$Z$3/12*(1-G$6/10),0))) -> 0 | H64: 0 | I64: 0 | J64: 0 | K64: 0 | L64: 0 | M64: 0 | N64: 0 | O64: 0 | P64: 0 | Q64: 0
E65: 介護 | F65: =IF(F55=1,$AL$3/12*(1-F$6/10),0) -> 0 | G65: =IF(G55=1,$AL$3/12*(1-G$6/10),0) -> 0 | H65: 0 | I65: 0 | J65: 0 | K65: 0 | L65: 0 | M65: 0 | N65: 0 | O65: 0 | P65: 0 | Q65: 0
D66: 限度額用 | E66: 医療 | F66: =IF(OR(F54=1,F54=3,F54=8),$X66+$AA66,0) -> 0 | G66: =IF(OR(G54=1,G54=3,G54=8),$X66+$AA66,0) -> 0 | H66: 0 | I66: 0 | J66: 0 | K66: 0 | L66: 0 | M66: 0 | N66: 0 | O66: 0 | P66: 0 | Q66: 0 | V66: 限度額判定用 | X66: =IF(B54-$AU$2>0,ROUNDDOWN((B54-$AU$2)*$K$3,0),0) -> 0 | AA66: =IF(V55=0,$N$3*(1-0.1*$B$4),$N$3*(1-0.1*$B$4)/2) -> 8880 | AD66: =IF($B54-$AU$2>0,ROUNDDOWN(($B54-$AU$2)*$W$3,0),0) -> 0 | AG66: =IF(V55=0,$Z$3*(1-0.1*$B$4),$Z$3*(1-0.1*$B$4)/2) -> 2790 | AJ66: =IF($B54-$AU$2>0,ROUNDDOWN(($B54-$AU$2)*$AI$3,0),0) -> 0 | AM66: =IF(V55=0,$AL$3*(1-0.1*$B$4),$AL$3*(1-0.1*$B$4)/2) -> 4470
E67: 後期 | F67: =IF(OR(F54=1,F54=3,F54=8),$AD66+$AG66,0) -> 0 | G67: =IF(OR(G54=1,G54=3,G54=8),$AD66+$AG66,0) -> 0 | H67: =IF(OR(H54=1,H54=3,H54=8),$AD66+$AG66,0) -> 0 | I67: =IF(OR(I54=1,I54=3,I54=8),$AD66+$AG66,0) -> 0 | J67: =IF(OR(J54=1,J54=3,J54=8),$AD66+$AG66,0) -> 0 | K67: =IF(OR(K54=1,K54=3,K54=8),$AD66+$AG66,0) -> 0 | L67: =IF(OR(L54=1,L54=3,L54=8),$AD66+$AG66,0) -> 0 | M67: =IF(OR(M54=1,M54=3,M54=8),$AD66+$AG66,0) -> 0 | N67: =IF(OR(N54=1,N54=3,N54=8),$AD66+$AG66,0) -> 0 | O67: =IF(OR(O54=1,O54=3,O54=8),$AD66+$AG66,0) -> 0 | P67: =IF(OR(P54=1,P54=3,P54=8),$AD66+$AG66,0) -> 0 | Q67: =IF(OR(Q54=1,Q54=3,Q54=8),$AD66+$AG66,0) -> 0
E68: 介護 | F68: =IF(F55=1,$AJ66+$AM66,0) -> 0 | G68: =IF(G55=1,$AJ66+$AM66,0) -> 0 | H68: 0 | I68: 0 | J68: 0 | K68: 0 | L68: 0 | M68: 0 | N68: 0 | O68: 0 | P68: 0 | Q68: 0
A69: 5 | B69: =給与所得計算!F30+年金所得計算!D78+試算!AV33 -> 0 | E69: 医療 | F69: =IF(加入情報!K19=0,"",加入情報!K19) ->  | G69: =IF(加入情報!L19=0,"",加入情報!L19) ->  | H69: =IF(加入情報!M19=0,"",加入情報!M19) ->  | I69: =IF(加入情報!N19=0,"",加入情報!N19) ->  | J69: =IF(加入情報!O19=0,"",加入情報!O19) ->  | K69: =IF(加入情報!P19=0,"",加入情報!P19) ->  | L69: =IF(加入情報!Q19=0,"",加入情報!Q19) ->  | M69: =IF(加入情報!R19=0,"",加入情報!R19) ->  | N69: =IF(加入情報!S19=0,"",加入情報!S19) ->  | O69: =IF(加入情報!T19=0,"",加入情報!T19) ->  | P69: =IF(加入情報!U19=0,"",加入情報!U19) ->  | Q69: =IF(加入情報!V19=0,"",加入情報!V19) ->  | R69: =COUNTIF(F69:Q69,1)+COUNTIF(F69:Q69,3)+COUNTIF(F69:Q69,8) -> 0 | T69: =COUNTIF(F69:Q69,4)+COUNTIF(F69:Q69,5) -> 0 | V69: =COUNTIF(F69:Q69,8) -> 0 | X69: =IF($R69=0,0,($R69-$V69)/$R69*$X81*$R69/12) -> 0 | AA69: =SUM(F78:Q78)+SUM(F75:Q75) -> 0 | AD69: =IF($R69=0,0,($R69-$V69)/$R69*AD81*$R69/12) -> 0 | AG69: =SUM(F79:Q79)+SUM(F76:Q76) -> 0 | AJ69: =AJ81*$R70/12 -> 0 | AM69: =SUM(F80:Q80) -> 0
E70: 介護 | F70: =IFERROR(IF(AND(F69=3,加入情報!K21<65,加入情報!K21>=40),1,""),"") ->  | G70: =IFERROR(IF(AND(G69=3,加入情報!L21<65,加入情報!L21>=40),1,""),"") ->  | H70: =IFERROR(IF(AND(H69=3,加入情報!M21<65,加入情報!M21>=40),1,""),"") ->  | I70: =IFERROR(IF(AND(I69=3,加入情報!N21<65,加入情報!N21>=40),1,""),"") ->  | J70: =IFERROR(IF(AND(J69=3,加入情報!O21<65,加入情報!O21>=40),1,""),"") ->  | K70: =IFERROR(IF(AND(K69=3,加入情報!P21<65,加入情報!P21>=40),1,""),"") ->  | L70: =IFERROR(IF(AND(L69=3,加入情報!Q21<65,加入情報!Q21>=40),1,""),"") ->  | M70: =IFERROR(IF(AND(M69=3,加入情報!R21<65,加入情報!R21>=40),1,""),"") ->  | N70: =IFERROR(IF(AND(N69=3,加入情報!S21<65,加入情報!S21>=40),1,""),"") ->  | O70: =IFERROR(IF(AND(O69=3,加入情報!T21<65,加入情報!T21>=40),1,""),"") ->  | P70: =IFERROR(IF(AND(P69=3,加入情報!U21<65,加入情報!U21>=40),1,""),"") ->  | Q70: =IFERROR(IF(AND(Q69=3,加入情報!V21<65,加入情報!V21>=40),1,""),"") ->  | R70: =SUBTOTAL(9,F70:Q70) -> 0 | T70: =COUNTIF(F69:Q69,6)+COUNTIF(F69:Q69,7) -> 0 | V70: =IF(加入情報!V21<7,1,0) -> 0
E71: 特定
D72: 予備 | E72: 医療
E73: 後期
E74: 介護
D75: 未就学軽減 | E75: 医療 | F75: =IF($V70=1,IF(OR(F69=1,F69=3),-$N$3/12*(1-F$6/10)/2,0),0) -> 0 | G75: =IF($V70=1,IF(OR(G69=1,G69=3),-$N$3/12*(1-G$6/10)/2,0),0) -> 0 | H75: 0 | I75: 0 | J75: 0 | K75: 0 | L75: 0 | M75: 0 | N75: 0 | O75: 0 | P75: 0 | Q75: 0
E76: 後期 | F76: =IF($V70=1,IF(OR(F69=1,F69=3),-$Z$3/12*(1-F$6/10)/2,0),0) -> 0 | G76: =IF($V70=1,IF(OR(G69=1,G69=3),-$Z$3/12*(1-G$6/10)/2,0),0) -> 0 | H76: =IF($V70=1,IF(OR(H69=1,H69=3),-$Z$3/12*(1-H$6/10)/2,0),0) -> 0 | I76: =IF($V70=1,IF(OR(I69=1,I69=3),-$Z$3/12*(1-I$6/10)/2,0),0) -> 0 | J76: 0 | K76: 0 | L76: 0 | M76: 0 | N76: 0 | O76: 0 | P76: =IF($V70=1,IF(OR(P69=1,P69=3),-$Z$3/12*(1-P$6/10)/2,0),0) -> 0 | Q76: =IF($V70=1,IF(OR(Q69=1,Q69=3),-$Z$3/12*(1-Q$6/10)/2,0),0) -> 0
E77: 介護
D78: 均等割用 | E78: 医療 | F78: =IF(OR(F69=1,F69=3),$N$3/12*(1-F$6/10),IF(AND(F69=8,F$6<5),$N$3/12*0.5,IF(F69=8,$N$3/12*(1-F$6/10),0))) -> 0 | G78: 0 | H78: =IF(OR(H69=1,H69=3),$N$3/12*(1-H$6/10),IF(AND(H69=8,H$6<5),$N$3/12*0.5,IF(H69=8,$N$3/12*(1-H$6/10),0))) -> 0 | I78: =IF(OR(I69=1,I69=3),$N$3/12*(1-I$6/10),IF(AND(I69=8,I$6<5),$N$3/12*0.5,IF(I69=8,$N$3/12*(1-I$6/10),0))) -> 0 | J78: 0 | K78: =IF(OR(K69=1,K69=3),$N$3/12*(1-K$6/10),IF(AND(K69=8,K$6<5),$N$3/12*0.5,IF(K69=8,$N$3/12*(1-K$6/10),0))) -> 0 | L78: =IF(OR(L69=1,L69=3),$N$3/12*(1-L$6/10),IF(AND(L69=8,L$6<5),$N$3/12*0.5,IF(L69=8,$N$3/12*(1-L$6/10),0))) -> 0 | M78: 0 | N78: 0 | O78: 0 | P78: 0 | Q78: 0
E79: 後期 | F79: =IF(OR(F69=1,F69=3),$Z$3/12*(1-F$6/10),IF(AND(F69=8,F$6<5),$Z$3/12*0.5,IF(F69=8,$Z$3/12*(1-F$6/10),0))) -> 0 | G79: =IF(OR(G69=1,G69=3),$Z$3/12*(1-G$6/10),IF(AND(G69=8,G$6<5),$Z$3/12*0.5,IF(G69=8,$Z$3/12*(1-G$6/10),0))) -> 0 | H79: 0 | I79: 0 | J79: 0 | K79: 0 | L79: 0 | M79: 0 | N79: 0 | O79: 0 | P79: 0 | Q79: 0
E80: 介護 | F80: =IF(F70=1,$AL$3/12*(1-F$6/10),0) -> 0 | G80: =IF(G70=1,$AL$3/12*(1-G$6/10),0) -> 0 | H80: 0 | I80: 0 | J80: 0 | K80: 0 | L80: 0 | M80: 0 | N80: 0 | O80: 0 | P80: 0 | Q80: 0
D81: 限度額用 | E81: 医療 | F81: =IF(OR(F69=1,F69=3,F69=8),$X81+$AA81,0) -> 0 | G81: =IF(OR(G69=1,G69=3,G69=8),$X81+$AA81,0) -> 0 | H81: 0 | I81: 0 | J81: 0 | K81: 0 | L81: 0 | M81: 0 | N81: 0 | O81: 0 | P81: 0 | Q81: 0 | V81: 限度額判定用 | X81: =IF(B69-$AU$2>0,ROUNDDOWN((B69-$AU$2)*$K$3,0),0) -> 0 | AA81: =IF(V70=0,$N$3*(1-0.1*$B$4),$N$3*(1-0.1*$B$4)/2) -> 8880 | AD81: =IF($B69-$AU$2>0,ROUNDDOWN(($B69-$AU$2)*$W$3,0),0) -> 0 | AG81: =IF(V70=0,$Z$3*(1-0.1*$B$4),$Z$3*(1-0.1*$B$4)/2) -> 2790 | AJ81: =IF($B69-$AU$2>0,ROUNDDOWN(($B69-$AU$2)*$AI$3,0),0) -> 0 | AM81: =IF(V70=0,$AL$3*(1-0.1*$B$4),$AL$3*(1-0.1*$B$4)/2) -> 4470
E82: 後期 | F82: =IF(OR(F69=1,F69=3,F69=8),$AD81+$AG81,0) -> 0 | G82: =IF(OR(G69=1,G69=3,G69=8),$AD81+$AG81,0) -> 0 | H82: =IF(OR(H69=1,H69=3,H69=8),$AD81+$AG81,0) -> 0 | I82: =IF(OR(I69=1,I69=3,I69=8),$AD81+$AG81,0) -> 0 | J82: =IF(OR(J69=1,J69=3,J69=8),$AD81+$AG81,0) -> 0 | K82: =IF(OR(K69=1,K69=3,K69=8),$AD81+$AG81,0) -> 0 | L82: =IF(OR(L69=1,L69=3,L69=8),$AD81+$AG81,0) -> 0 | M82: =IF(OR(M69=1,M69=3,M69=8),$AD81+$AG81,0) -> 0 | N82: =IF(OR(N69=1,N69=3,N69=8),$AD81+$AG81,0) -> 0 | O82: =IF(OR(O69=1,O69=3,O69=8),$AD81+$AG81,0) -> 0 | P82: =IF(OR(P69=1,P69=3,P69=8),$AD81+$AG81,0) -> 0 | Q82: =IF(OR(Q69=1,Q69=3,Q69=8),$AD81+$AG81,0) -> 0
E83: 介護 | F83: =IF(F70=1,$AJ81+$AM81,0) -> 0 | G83: =IF(G70=1,$AJ81+$AM81,0) -> 0 | H83: 0 | I83: 0 | J83: 0 | K83: 0 | L83: 0 | M83: 0 | N83: 0 | O83: 0 | P83: 0 | Q83: 0
A84: 6 | B84: =給与所得計算!F31+年金所得計算!D79+試算!AV35 -> 0 | E84: 医療 | F84: =IF(加入情報!K22=0,"",加入情報!K22) ->  | G84: =IF(加入情報!L22=0,"",加入情報!L22) ->  | H84: =IF(加入情報!M22=0,"",加入情報!M22) ->  | I84: =IF(加入情報!N22=0,"",加入情報!N22) ->  | J84: =IF(加入情報!O22=0,"",加入情報!O22) ->  | K84: =IF(加入情報!P22=0,"",加入情報!P22) ->  | L84: =IF(加入情報!Q22=0,"",加入情報!Q22) ->  | M84: =IF(加入情報!R22=0,"",加入情報!R22) ->  | N84: =IF(加入情報!S22=0,"",加入情報!S22) ->  | O84: =IF(加入情報!T22=0,"",加入情報!T22) ->  | P84: =IF(加入情報!U22=0,"",加入情報!U22) ->  | Q84: =IF(加入情報!V22=0,"",加入情報!V22) ->  | R84: =COUNTIF(F84:Q84,1)+COUNTIF(F84:Q84,3)+COUNTIF(F84:Q84,8) -> 0 | T84: =COUNTIF(F84:Q84,4)+COUNTIF(F84:Q84,5) -> 0 | V84: =COUNTIF(F84:Q84,8) -> 0 | X84: =IF($R84=0,0,($R84-$V84)/$R84*$X96*$R84/12) -> 0 | AA84: =SUM(F93:Q93)+SUM(F90:Q90) -> 0 | AD84: =IF($R84=0,0,($R84-$V84)/$R84*AD96*$R84/12) -> 0 | AG84: =SUM(F94:Q94)+SUM(F91:Q91) -> 0 | AJ84: =AJ96*$R85/12 -> 0 | AM84: =SUM(F95:Q95) -> 0
E85: 介護 | F85: =IFERROR(IF(AND(F84=3,加入情報!K24<65,加入情報!K24>=40),1,""),"") ->  | G85: =IFERROR(IF(AND(G84=3,加入情報!L24<65,加入情報!L24>=40),1,""),"") ->  | H85: =IFERROR(IF(AND(H84=3,加入情報!M24<65,加入情報!M24>=40),1,""),"") ->  | I85: =IFERROR(IF(AND(I84=3,加入情報!N24<65,加入情報!N24>=40),1,""),"") ->  | J85: =IFERROR(IF(AND(J84=3,加入情報!O24<65,加入情報!O24>=40),1,""),"") ->  | K85: =IFERROR(IF(AND(K84=3,加入情報!P24<65,加入情報!P24>=40),1,""),"") ->  | L85: =IFERROR(IF(AND(L84=3,加入情報!Q24<65,加入情報!Q24>=40),1,""),"") ->  | M85: =IFERROR(IF(AND(M84=3,加入情報!R24<65,加入情報!R24>=40),1,""),"") ->  | N85: =IFERROR(IF(AND(N84=3,加入情報!S24<65,加入情報!S24>=40),1,""),"") ->  | O85: =IFERROR(IF(AND(O84=3,加入情報!T24<65,加入情報!T24>=40),1,""),"") ->  | P85: =IFERROR(IF(AND(P84=3,加入情報!U24<65,加入情報!U24>=40),1,""),"") ->  | Q85: =IFERROR(IF(AND(Q84=3,加入情報!V24<65,加入情報!V24>=40),1,""),"") ->  | R85: =SUBTOTAL(9,F85:Q85) -> 0 | T85: =COUNTIF(F84:Q84,6)+COUNTIF(F84:Q84,7) -> 0 | V85: =IF(加入情報!V24<7,1,0) -> 0
E86: 特定
D87: 予備 | E87: 医療
E88: 後期
E89: 介護
D90: 未就学軽減 | E90: 医療 | F90: =IF($V85=1,IF(OR(F84=1,F84=3),-$N$3/12*(1-F$6/10)/2,0),0) -> 0 | G90: =IF($V85=1,IF(OR(G84=1,G84=3),-$N$3/12*(1-G$6/10)/2,0),0) -> 0 | H90: 0 | I90: 0 | J90: 0 | K90: 0 | L90: 0 | M90: 0 | N90: 0 | O90: 0 | P90: 0 | Q90: 0
E91: 後期 | F91: =IF($V85=1,IF(OR(F84=1,F84=3),-$Z$3/12*(1-F$6/10)/2,0),0) -> 0 | G91: =IF($V85=1,IF(OR(G84=1,G84=3),-$Z$3/12*(1-G$6/10)/2,0),0) -> 0 | H91: =IF($V85=1,IF(OR(H84=1,H84=3),-$Z$3/12*(1-H$6/10)/2,0),0) -> 0 | I91: =IF($V85=1,IF(OR(I84=1,I84=3),-$Z$3/12*(1-I$6/10)/2,0),0) -> 0 | J91: 0 | K91: 0 | L91: 0 | M91: 0 | N91: 0 | O91: 0 | P91: =IF($V85=1,IF(OR(P84=1,P84=3),-$Z$3/12*(1-P$6/10)/2,0),0) -> 0 | Q91: =IF($V85=1,IF(OR(Q84=1,Q84=3),-$Z$3/12*(1-Q$6/10)/2,0),0) -> 0
E92: 介護
D93: 均等割用 | E93: 医療 | F93: =IF(OR(F84=1,F84=3),$N$3/12*(1-F$6/10),IF(AND(F84=8,F$6<5),$N$3/12*0.5,IF(F84=8,$N$3/12*(1-F$6/10),0))) -> 0 | G93: 0 | H93: =IF(OR(H84=1,H84=3),$N$3/12*(1-H$6/10),IF(AND(H84=8,H$6<5),$N$3/12*0.5,IF(H84=8,$N$3/12*(1-H$6/10),0))) -> 0 | I93: =IF(OR(I84=1,I84=3),$N$3/12*(1-I$6/10),IF(AND(I84=8,I$6<5),$N$3/12*0.5,IF(I84=8,$N$3/12*(1-I$6/10),0))) -> 0 | J93: 0 | K93: =IF(OR(K84=1,K84=3),$N$3/12*(1-K$6/10),IF(AND(K84=8,K$6<5),$N$3/12*0.5,IF(K84=8,$N$3/12*(1-K$6/10),0))) -> 0 | L93: =IF(OR(L84=1,L84=3),$N$3/12*(1-L$6/10),IF(AND(L84=8,L$6<5),$N$3/12*0.5,IF(L84=8,$N$3/12*(1-L$6/10),0))) -> 0 | M93: 0 | N93: 0 | O93: 0 | P93: 0 | Q93: 0
E94: 後期 | F94: =IF(OR(F84=1,F84=3),$Z$3/12*(1-F$6/10),IF(AND(F84=8,F$6<5),$Z$3/12*0.5,IF(F84=8,$Z$3/12*(1-F$6/10),0))) -> 0 | G94: =IF(OR(G84=1,G84=3),$Z$3/12*(1-G$6/10),IF(AND(G84=8,G$6<5),$Z$3/12*0.5,IF(G84=8,$Z$3/12*(1-G$6/10),0))) -> 0 | H94: 0 | I94: 0 | J94: 0 | K94: 0 | L94: 0 | M94: 0 | N94: 0 | O94: 0 | P94: 0 | Q94: 0
E95: 介護 | F95: =IF(F85=1,$AL$3/12*(1-F$6/10),0) -> 0 | G95: =IF(G85=1,$AL$3/12*(1-G$6/10),0) -> 0 | H95: 0 | I95: 0 | J95: 0 | K95: 0 | L95: 0 | M95: 0 | N95: 0 | O95: 0 | P95: 0 | Q95: 0
D96: 限度額用 | E96: 医療 | F96: =IF(OR(F84=1,F84=3,F84=8),$X96+$AA96,0) -> 0 | G96: =IF(OR(G84=1,G84=3,G84=8),$X96+$AA96,0) -> 0 | H96: 0 | I96: 0 | J96: 0 | K96: 0 | L96: 0 | M96: 0 | N96: 0 | O96: 0 | P96: 0 | Q96: 0 | V96: 限度額判定用 | X96: =IF(B84-$AU$2>0,ROUNDDOWN((B84-$AU$2)*$K$3,0),0) -> 0 | AA96: =IF(V85=0,$N$3*(1-0.1*$B$4),$N$3*(1-0.1*$B$4)/2) -> 8880 | AD96: =IF($B84-$AU$2>0,ROUNDDOWN(($B84-$AU$2)*$W$3,0),0) -> 0 | AG96: =IF(V85=0,$Z$3*(1-0.1*$B$4),$Z$3*(1-0.1*$B$4)/2) -> 2790 | AJ96: =IF($B84-$AU$2>0,ROUNDDOWN(($B84-$AU$2)*$AI$3,0),0) -> 0 | AM96: =IF(V85=0,$AL$3*(1-0.1*$B$4),$AL$3*(1-0.1*$B$4)/2) -> 4470
E97: 後期 | F97: =IF(OR(F84=1,F84=3,F84=8),$AD96+$AG96,0) -> 0 | G97: =IF(OR(G84=1,G84=3,G84=8),$AD96+$AG96,0) -> 0 | H97: =IF(OR(H84=1,H84=3,H84=8),$AD96+$AG96,0) -> 0 | I97: =IF(OR(I84=1,I84=3,I84=8),$AD96+$AG96,0) -> 0 | J97: =IF(OR(J84=1,J84=3,J84=8),$AD96+$AG96,0) -> 0 | K97: =IF(OR(K84=1,K84=3,K84=8),$AD96+$AG96,0) -> 0 | L97: =IF(OR(L84=1,L84=3,L84=8),$AD96+$AG96,0) -> 0 | M97: =IF(OR(M84=1,M84=3,M84=8),$AD96+$AG96,0) -> 0 | N97: =IF(OR(N84=1,N84=3,N84=8),$AD96+$AG96,0) -> 0 | O97: =IF(OR(O84=1,O84=3,O84=8),$AD96+$AG96,0) -> 0 | P97: =IF(OR(P84=1,P84=3,P84=8),$AD96+$AG96,0) -> 0 | Q97: =IF(OR(Q84=1,Q84=3,Q84=8),$AD96+$AG96,0) -> 0
E98: 介護 | F98: =IF(F85=1,$AJ96+$AM96,0) -> 0 | G98: =IF(G85=1,$AJ96+$AM96,0) -> 0 | H98: 0 | I98: 0 | J98: 0 | K98: 0 | L98: 0 | M98: 0 | N98: 0 | O98: 0 | P98: 0 | Q98: 0
A99: 7 | B99: =給与所得計算!F32+年金所得計算!D80+試算!AV37 -> 0 | E99: 医療 | F99: =IF(加入情報!K25=0,"",加入情報!K25) ->  | G99: =IF(加入情報!L25=0,"",加入情報!L25) ->  | H99: =IF(加入情報!M25=0,"",加入情報!M25) ->  | I99: =IF(加入情報!N25=0,"",加入情報!N25) ->  | J99: =IF(加入情報!O25=0,"",加入情報!O25) ->  | K99: =IF(加入情報!P25=0,"",加入情報!P25) ->  | L99: =IF(加入情報!Q25=0,"",加入情報!Q25) ->  | M99: =IF(加入情報!R25=0,"",加入情報!R25) ->  | N99: =IF(加入情報!S25=0,"",加入情報!S25) ->  | O99: =IF(加入情報!T25=0,"",加入情報!T25) ->  | P99: =IF(加入情報!U25=0,"",加入情報!U25) ->  | Q99: =IF(加入情報!V25=0,"",加入情報!V25) ->  | R99: =COUNTIF(F99:Q99,1)+COUNTIF(F99:Q99,3)+COUNTIF(F99:Q99,8) -> 0 | T99: =COUNTIF(F99:Q99,4)+COUNTIF(F99:Q99,5) -> 0 | V99: =COUNTIF(F99:Q99,8) -> 0 | X99: =IF($R99=0,0,($R99-$V99)/$R99*$X111*$R99/12) -> 0 | AA99: =SUM(F108:Q108)+SUM(F105:Q105) -> 0 | AD99: =IF($R99=0,0,($R99-$V99)/$R99*AD111*$R99/12) -> 0 | AG99: =SUM(F109:Q109)+SUM(F106:Q106) -> 0 | AJ99: =AJ111*$R100/12 -> 0 | AM99: =SUM(F110:Q110) -> 0
E100: 介護 | F100: =IFERROR(IF(AND(F99=3,加入情報!K27<65,加入情報!K27>=40),1,""),"") ->  | G100: =IFERROR(IF(AND(G99=3,加入情報!L27<65,加入情報!L27>=40),1,""),"") ->  | H100: =IFERROR(IF(AND(H99=3,加入情報!M27<65,加入情報!M27>=40),1,""),"") ->  | I100: =IFERROR(IF(AND(I99=3,加入情報!N27<65,加入情報!N27>=40),1,""),"") ->  | J100: =IFERROR(IF(AND(J99=3,加入情報!O27<65,加入情報!O27>=40),1,""),"") ->  | K100: =IFERROR(IF(AND(K99=3,加入情報!P27<65,加入情報!P27>=40),1,""),"") ->  | L100: =IFERROR(IF(AND(L99=3,加入情報!Q27<65,加入情報!Q27>=40),1,""),"") ->  | M100: =IFERROR(IF(AND(M99=3,加入情報!R27<65,加入情報!R27>=40),1,""),"") ->  | N100: =IFERROR(IF(AND(N99=3,加入情報!S27<65,加入情報!S27>=40),1,""),"") ->  | O100: =IFERROR(IF(AND(O99=3,加入情報!T27<65,加入情報!T27>=40),1,""),"") ->  | P100: =IFERROR(IF(AND(P99=3,加入情報!U27<65,加入情報!U27>=40),1,""),"") ->  | Q100: =IFERROR(IF(AND(Q99=3,加入情報!V27<65,加入情報!V27>=40),1,""),"") ->  | R100: =SUBTOTAL(9,F100:Q100) -> 0 | T100: =COUNTIF(F99:Q99,6)+COUNTIF(F99:Q99,7) -> 0 | V100: =IF(加入情報!V27<7,1,0) -> 0
E101: 特定
D102: 予備 | E102: 医療
E103: 後期
E104: 介護
D105: 未就学軽減 | E105: 医療 | F105: =IF($V100=1,IF(OR(F99=1,F99=3),-$N$3/12*(1-F$6/10)/2,0),0) -> 0 | G105: =IF($V100=1,IF(OR(G99=1,G99=3),-$N$3/12*(1-G$6/10)/2,0),0) -> 0 | H105: 0 | I105: 0 | J105: 0 | K105: 0 | L105: 0 | M105: 0 | N105: 0 | O105: 0 | P105: 0 | Q105: 0
E106: 後期 | F106: =IF($V100=1,IF(OR(F99=1,F99=3),-$Z$3/12*(1-F$6/10)/2,0),0) -> 0 | G106: =IF($V100=1,IF(OR(G99=1,G99=3),-$Z$3/12*(1-G$6/10)/2,0),0) -> 0 | H106: =IF($V100=1,IF(OR(H99=1,H99=3),-$Z$3/12*(1-H$6/10)/2,0),0) -> 0 | I106: =IF($V100=1,IF(OR(I99=1,I99=3),-$Z$3/12*(1-I$6/10)/2,0),0) -> 0 | J106: 0 | K106: 0 | L106: 0 | M106: 0 | N106: 0 | O106: 0 | P106: =IF($V100=1,IF(OR(P99=1,P99=3),-$Z$3/12*(1-P$6/10)/2,0),0) -> 0 | Q106: =IF($V100=1,IF(OR(Q99=1,Q99=3),-$Z$3/12*(1-Q$6/10)/2,0),0) -> 0
E107: 介護
D108: 均等割用 | E108: 医療 | F108: =IF(OR(F99=1,F99=3),$N$3/12*(1-F$6/10),IF(AND(F99=8,F$6<5),$N$3/12*0.5,IF(F99=8,$N$3/12*(1-F$6/10),0))) -> 0 | G108: 0 | H108: =IF(OR(H99=1,H99=3),$N$3/12*(1-H$6/10),IF(AND(H99=8,H$6<5),$N$3/12*0.5,IF(H99=8,$N$3/12*(1-H$6/10),0))) -> 0 | I108: =IF(OR(I99=1,I99=3),$N$3/12*(1-I$6/10),IF(AND(I99=8,I$6<5),$N$3/12*0.5,IF(I99=8,$N$3/12*(1-I$6/10),0))) -> 0 | J108: 0 | K108: =IF(OR(K99=1,K99=3),$N$3/12*(1-K$6/10),IF(AND(K99=8,K$6<5),$N$3/12*0.5,IF(K99=8,$N$3/12*(1-K$6/10),0))) -> 0 | L108: =IF(OR(L99=1,L99=3),$N$3/12*(1-L$6/10),IF(AND(L99=8,L$6<5),$N$3/12*0.5,IF(L99=8,$N$3/12*(1-L$6/10),0))) -> 0 | M108: 0 | N108: 0 | O108: 0 | P108: 0 | Q108: 0
E109: 後期 | F109: =IF(OR(F99=1,F99=3),$Z$3/12*(1-F$6/10),IF(AND(F99=8,F$6<5),$Z$3/12*0.5,IF(F99=8,$Z$3/12*(1-F$6/10),0))) -> 0 | G109: =IF(OR(G99=1,G99=3),$Z$3/12*(1-G$6/10),IF(AND(G99=8,G$6<5),$Z$3/12*0.5,IF(G99=8,$Z$3/12*(1-G$6/10),0))) -> 0 | H109: 0 | I109: 0 | J109: 0 | K109: 0 | L109: 0 | M109: 0 | N109: 0 | O109: 0 | P109: 0 | Q109: 0
E110: 介護 | F110: =IF(F100=1,$AL$3/12*(1-F$6/10),0) -> 0 | G110: =IF(G100=1,$AL$3/12*(1-G$6/10),0) -> 0 | H110: 0 | I110: 0 | J110: 0 | K110: 0 | L110: 0 | M110: 0 | N110: 0 | O110: 0 | P110: 0 | Q110: 0
D111: 限度額用 | E111: 医療 | F111: =IF(OR(F99=1,F99=3,F99=8),$X111+$AA111,0) -> 0 | G111: =IF(OR(G99=1,G99=3,G99=8),$X111+$AA111,0) -> 0 | H111: 0 | I111: 0 | J111: 0 | K111: 0 | L111: 0 | M111: 0 | N111: 0 | O111: 0 | P111: 0 | Q111: 0 | V111: 限度額判定用 | X111: =IF(B99-$AU$2>0,ROUNDDOWN((B99-$AU$2)*$K$3,0),0) -> 0 | AA111: =IF(V100=0,$N$3*(1-0.1*$B$4),$N$3*(1-0.1*$B$4)/2) -> 8880 | AD111: =IF($B99-$AU$2>0,ROUNDDOWN(($B99-$AU$2)*$W$3,0),0) -> 0 | AG111: =IF(V100=0,$Z$3*(1-0.1*$B$4),$Z$3*(1-0.1*$B$4)/2) -> 2790 | AJ111: =IF($B99-$AU$2>0,ROUNDDOWN(($B99-$AU$2)*$AI$3,0),0) -> 0 | AM111: =IF(V100=0,$AL$3*(1-0.1*$B$4),$AL$3*(1-0.1*$B$4)/2) -> 4470
E112: 後期 | F112: =IF(OR(F99=1,F99=3,F99=8),$AD111+$AG111,0) -> 0 | G112: =IF(OR(G99=1,G99=3,G99=8),$AD111+$AG111,0) -> 0 | H112: =IF(OR(H99=1,H99=3,H99=8),$AD111+$AG111,0) -> 0 | I112: =IF(OR(I99=1,I99=3,I99=8),$AD111+$AG111,0) -> 0 | J112: =IF(OR(J99=1,J99=3,J99=8),$AD111+$AG111,0) -> 0 | K112: =IF(OR(K99=1,K99=3,K99=8),$AD111+$AG111,0) -> 0 | L112: =IF(OR(L99=1,L99=3,L99=8),$AD111+$AG111,0) -> 0 | M112: =IF(OR(M99=1,M99=3,M99=8),$AD111+$AG111,0) -> 0 | N112: =IF(OR(N99=1,N99=3,N99=8),$AD111+$AG111,0) -> 0 | O112: =IF(OR(O99=1,O99=3,O99=8),$AD111+$AG111,0) -> 0 | P112: =IF(OR(P99=1,P99=3,P99=8),$AD111+$AG111,0) -> 0 | Q112: =IF(OR(Q99=1,Q99=3,Q99=8),$AD111+$AG111,0) -> 0
E113: 介護 | F113: =IF(F100=1,$AJ111+$AM111,0) -> 0 | G113: =IF(G100=1,$AJ111+$AM111,0) -> 0 | H113: 0 | I113: 0 | J113: 0 | K113: 0 | L113: 0 | M113: 0 | N113: 0 | O113: 0 | P113: 0 | Q113: 0
A114: 8 | B114: =給与所得計算!F33+年金所得計算!D81+試算!AV39 -> 0 | E114: 医療 | F114: =IF(加入情報!K28=0,"",加入情報!K28) ->  | G114: =IF(加入情報!L28=0,"",加入情報!L28) ->  | H114: =IF(加入情報!M28=0,"",加入情報!M28) ->  | I114: =IF(加入情報!N28=0,"",加入情報!N28) ->  | J114: =IF(加入情報!O28=0,"",加入情報!O28) ->  | K114: =IF(加入情報!P28=0,"",加入情報!P28) ->  | L114: =IF(加入情報!Q28=0,"",加入情報!Q28) ->  | M114: =IF(加入情報!R28=0,"",加入情報!R28) ->  | N114: =IF(加入情報!S28=0,"",加入情報!S28) ->  | O114: =IF(加入情報!T28=0,"",加入情報!T28) ->  | P114: =IF(加入情報!U28=0,"",加入情報!U28) ->  | Q114: =IF(加入情報!V28=0,"",加入情報!V28) ->  | R114: =COUNTIF(F114:Q114,1)+COUNTIF(F114:Q114,3)+COUNTIF(F114:Q114,8) -> 0 | T114: =COUNTIF(F114:Q114,4)+COUNTIF(F114:Q114,5) -> 0 | V114: =COUNTIF(F114:Q114,8) -> 0 | X114: =IF($R114=0,0,($R114-$V114)/$R114*$X126*$R114/12) -> 0 | AA114: =SUM(F123:Q123)+SUM(F120:Q120) -> 0 | AD114: =IF($R114=0,0,($R114-$V114)/$R114*AD126*$R114/12) -> 0 | AG114: =SUM(F124:Q124)+SUM(F121:Q121) -> 0 | AJ114: =AJ126*$R115/12 -> 0 | AM114: =SUM(F125:Q125) -> 0
E115: 介護 | F115: =IFERROR(IF(AND(F114=3,加入情報!K30<65,加入情報!K30>=40),1,""),"") ->  | G115: =IFERROR(IF(AND(G114=3,加入情報!L30<65,加入情報!L30>=40),1,""),"") ->  | H115: =IFERROR(IF(AND(H114=3,加入情報!M30<65,加入情報!M30>=40),1,""),"") ->  | I115: =IFERROR(IF(AND(I114=3,加入情報!N30<65,加入情報!N30>=40),1,""),"") ->  | J115: =IFERROR(IF(AND(J114=3,加入情報!O30<65,加入情報!O30>=40),1,""),"") ->  | K115: =IFERROR(IF(AND(K114=3,加入情報!P30<65,加入情報!P30>=40),1,""),"") ->  | L115: =IFERROR(IF(AND(L114=3,加入情報!Q30<65,加入情報!Q30>=40),1,""),"") ->  | M115: =IFERROR(IF(AND(M114=3,加入情報!R30<65,加入情報!R30>=40),1,""),"") ->  | N115: =IFERROR(IF(AND(N114=3,加入情報!S30<65,加入情報!S30>=40),1,""),"") ->  | O115: =IFERROR(IF(AND(O114=3,加入情報!T30<65,加入情報!T30>=40),1,""),"") ->  | P115: =IFERROR(IF(AND(P114=3,加入情報!U30<65,加入情報!U30>=40),1,""),"") ->  | Q115: =IFERROR(IF(AND(Q114=3,加入情報!V30<65,加入情報!V30>=40),1,""),"") ->  | R115: =SUBTOTAL(9,F115:Q115) -> 0 | T115: =COUNTIF(F114:Q114,6)+COUNTIF(F114:Q114,7) -> 0 | V115: =IF(加入情報!V30<7,1,0) -> 0
E116: 特定
D117: 予備 | E117: 医療
E118: 後期
E119: 介護
D120: 未就学軽減 | E120: 医療 | F120: =IF($V115=1,IF(OR(F114=1,F114=3),-$N$3/12*(1-F$6/10)/2,0),0) -> 0 | G120: =IF($V115=1,IF(OR(G114=1,G114=3),-$N$3/12*(1-G$6/10)/2,0),0) -> 0 | H120: 0 | I120: 0 | J120: 0 | K120: 0 | L120: 0 | M120: 0 | N120: 0 | O120: 0 | P120: 0 | Q120: 0
E121: 後期 | F121: =IF($V115=1,IF(OR(F114=1,F114=3),-$Z$3/12*(1-F$6/10)/2,0),0) -> 0 | G121: =IF($V115=1,IF(OR(G114=1,G114=3),-$Z$3/12*(1-G$6/10)/2,0),0) -> 0 | H121: =IF($V115=1,IF(OR(H114=1,H114=3),-$Z$3/12*(1-H$6/10)/2,0),0) -> 0 | I121: =IF($V115=1,IF(OR(I114=1,I114=3),-$Z$3/12*(1-I$6/10)/2,0),0) -> 0 | J121: 0 | K121: 0 | L121: 0 | M121: 0 | N121: 0 | O121: 0 | P121: =IF($V115=1,IF(OR(P114=1,P114=3),-$Z$3/12*(1-P$6/10)/2,0),0) -> 0 | Q121: =IF($V115=1,IF(OR(Q114=1,Q114=3),-$Z$3/12*(1-Q$6/10)/2,0),0) -> 0
E122: 介護
D123: 均等割用 | E123: 医療 | F123: =IF(OR(F114=1,F114=3),$N$3/12*(1-F$6/10),IF(AND(F114=8,F$6<5),$N$3/12*0.5,IF(F114=8,$N$3/12*(1-F$6/10),0))) -> 0 | G123: 0 | H123: =IF(OR(H114=1,H114=3),$N$3/12*(1-H$6/10),IF(AND(H114=8,H$6<5),$N$3/12*0.5,IF(H114=8,$N$3/12*(1-H$6/10),0))) -> 0 | I123: =IF(OR(I114=1,I114=3),$N$3/12*(1-I$6/10),IF(AND(I114=8,I$6<5),$N$3/12*0.5,IF(I114=8,$N$3/12*(1-I$6/10),0))) -> 0 | J123: 0 | K123: =IF(OR(K114=1,K114=3),$N$3/12*(1-K$6/10),IF(AND(K114=8,K$6<5),$N$3/12*0.5,IF(K114=8,$N$3/12*(1-K$6/10),0))) -> 0 | L123: =IF(OR(L114=1,L114=3),$N$3/12*(1-L$6/10),IF(AND(L114=8,L$6<5),$N$3/12*0.5,IF(L114=8,$N$3/12*(1-L$6/10),0))) -> 0 | M123: 0 | N123: 0 | O123: 0 | P123: 0 | Q123: 0
E124: 後期 | F124: =IF(OR(F114=1,F114=3),$Z$3/12*(1-F$6/10),IF(AND(F114=8,F$6<5),$Z$3/12*0.5,IF(F114=8,$Z$3/12*(1-F$6/10),0))) -> 0 | G124: =IF(OR(G114=1,G114=3),$Z$3/12*(1-G$6/10),IF(AND(G114=8,G$6<5),$Z$3/12*0.5,IF(G114=8,$Z$3/12*(1-G$6/10),0))) -> 0 | H124: 0 | I124: 0 | J124: 0 | K124: 0 | L124: 0 | M124: 0 | N124: 0 | O124: 0 | P124: 0 | Q124: 0
E125: 介護 | F125: =IF(F115=1,$AL$3/12*(1-F$6/10),0) -> 0 | G125: =IF(G115=1,$AL$3/12*(1-G$6/10),0) -> 0 | H125: 0 | I125: 0 | J125: 0 | K125: 0 | L125: 0 | M125: 0 | N125: 0 | O125: 0 | P125: 0 | Q125: 0
D126: 限度額用 | E126: 医療 | F126: =IF(OR(F114=1,F114=3,F114=8),$X126+$AA126,0) -> 0 | G126: =IF(OR(G114=1,G114=3,G114=8),$X126+$AA126,0) -> 0 | H126: 0 | I126: 0 | J126: 0 | K126: 0 | L126: 0 | M126: 0 | N126: 0 | O126: 0 | P126: 0 | Q126: 0 | V126: 限度額判定用 | X126: =IF(B114-$AU$2>0,ROUNDDOWN((B114-$AU$2)*$K$3,0),0) -> 0 | AA126: =IF(V115=0,$N$3*(1-0.1*$B$4),$N$3*(1-0.1*$B$4)/2) -> 8880 | AD126: =IF($B114-$AU$2>0,ROUNDDOWN(($B114-$AU$2)*$W$3,0),0) -> 0 | AG126: =IF(V115=0,$Z$3*(1-0.1*$B$4),$Z$3*(1-0.1*$B$4)/2) -> 2790 | AJ126: =IF($B114-$AU$2>0,ROUNDDOWN(($B114-$AU$2)*$AI$3,0),0) -> 0 | AM126: =IF(V115=0,$AL$3*(1-0.1*$B$4),$AL$3*(1-0.1*$B$4)/2) -> 4470
E127: 後期 | F127: =IF(OR(F114=1,F114=3,F114=8),$AD126+$AG126,0) -> 0 | G127: =IF(OR(G114=1,G114=3,G114=8),$AD126+$AG126,0) -> 0 | H127: =IF(OR(H114=1,H114=3,H114=8),$AD126+$AG126,0) -> 0 | I127: =IF(OR(I114=1,I114=3,I114=8),$AD126+$AG126,0) -> 0 | J127: =IF(OR(J114=1,J114=3,J114=8),$AD126+$AG126,0) -> 0 | K127: =IF(OR(K114=1,K114=3,K114=8),$AD126+$AG126,0) -> 0 | L127: =IF(OR(L114=1,L114=3,L114=8),$AD126+$AG126,0) -> 0 | M127: =IF(OR(M114=1,M114=3,M114=8),$AD126+$AG126,0) -> 0 | N127: =IF(OR(N114=1,N114=3,N114=8),$AD126+$AG126,0) -> 0 | O127: =IF(OR(O114=1,O114=3,O114=8),$AD126+$AG126,0) -> 0 | P127: =IF(OR(P114=1,P114=3,P114=8),$AD126+$AG126,0) -> 0 | Q127: =IF(OR(Q114=1,Q114=3,Q114=8),$AD126+$AG126,0) -> 0
E128: 介護 | F128: =IF(F115=1,$AJ126+$AM126,0) -> 0 | G128: =IF(G115=1,$AJ126+$AM126,0) -> 0 | H128: 0 | I128: 0 | J128: 0 | K128: 0 | L128: 0 | M128: 0 | N128: 0 | O128: 0 | P128: 0 | Q128: 0
A129: 9 | E129: 医療 | R129: =COUNTIF(F129:Q129,1)+COUNTIF(F129:Q129,3)+COUNTIF(F129:Q129,8) -> 0 | T129: =COUNTIF(F129:Q129,4)+COUNTIF(F129:Q129,5) -> 0 | V129: =COUNTIF(F129:Q129,8) -> 0 | X129: =IF($R129=0,0,($R129-$V129)/$R129*$X141*$R129/12) -> 0 | AA129: =SUM(F138:Q138)+SUM(F135:Q135) -> 0 | AD129: =IF($R129=0,0,($R129-$V129)/$R129*AD141*$R129/12) -> 0 | AG129: =SUM(F139:Q139)+SUM(F136:Q136) -> 0 | AJ129: =AJ141*$R130/12 -> 0 | AM129: =SUM(F140:Q140) -> 0
E130: 介護 | R130: =SUBTOTAL(9,F130:Q130) -> 0 | T130: =COUNTIF(F129:Q129,6)+COUNTIF(F129:Q129,7) -> 0
E131: 特定
D132: 予備 | E132: 医療
E133: 後期
E134: 介護
D135: 未就学軽減 | E135: 医療 | F135: =IF($V130=1,IF(OR(F129=1,F129=3),-$N$3/12*(1-F$6/10)/2,0),0) -> 0 | G135: =IF($V130=1,IF(OR(G129=1,G129=3),-$N$3/12*(1-G$6/10)/2,0),0) -> 0 | H135: 0 | I135: 0 | J135: 0 | K135: 0 | L135: 0 | M135: 0 | N135: 0 | O135: 0 | P135: 0 | Q135: 0
E136: 後期 | F136: =IF($V130=1,IF(OR(F129=1,F129=3),-$Z$3/12*(1-F$6/10)/2,0),0) -> 0 | G136: =IF($V130=1,IF(OR(G129=1,G129=3),-$Z$3/12*(1-G$6/10)/2,0),0) -> 0 | H136: =IF($V130=1,IF(OR(H129=1,H129=3),-$Z$3/12*(1-H$6/10)/2,0),0) -> 0 | I136: =IF($V130=1,IF(OR(I129=1,I129=3),-$Z$3/12*(1-I$6/10)/2,0),0) -> 0 | J136: 0 | K136: 0 | L136: 0 | M136: 0 | N136: 0 | O136: 0 | P136: =IF($V130=1,IF(OR(P129=1,P129=3),-$Z$3/12*(1-P$6/10)/2,0),0) -> 0 | Q136: =IF($V130=1,IF(OR(Q129=1,Q129=3),-$Z$3/12*(1-Q$6/10)/2,0),0) -> 0
E137: 介護
D138: 均等割用 | E138: 医療 | F138: =IF(OR(F129=1,F129=3),$N$3/12*(1-F$6/10),IF(AND(F129=8,F$6<5),$N$3/12*0.5,IF(F129=8,$N$3/12*(1-F$6/10),0))) -> 0 | G138: 0 | H138: =IF(OR(H129=1,H129=3),$N$3/12*(1-H$6/10),IF(AND(H129=8,H$6<5),$N$3/12*0.5,IF(H129=8,$N$3/12*(1-H$6/10),0))) -> 0 | I138: =IF(OR(I129=1,I129=3),$N$3/12*(1-I$6/10),IF(AND(I129=8,I$6<5),$N$3/12*0.5,IF(I129=8,$N$3/12*(1-I$6/10),0))) -> 0 | J138: 0 | K138: =IF(OR(K129=1,K129=3),$N$3/12*(1-K$6/10),IF(AND(K129=8,K$6<5),$N$3/12*0.5,IF(K129=8,$N$3/12*(1-K$6/10),0))) -> 0 | L138: =IF(OR(L129=1,L129=3),$N$3/12*(1-L$6/10),IF(AND(L129=8,L$6<5),$N$3/12*0.5,IF(L129=8,$N$3/12*(1-L$6/10),0))) -> 0 | M138: 0 | N138: 0 | O138: 0 | P138: 0 | Q138: 0
E139: 後期 | F139: =IF(OR(F129=1,F129=3),$Z$3/12*(1-F$6/10),IF(AND(F129=8,F$6<5),$Z$3/12*0.5,IF(F129=8,$Z$3/12*(1-F$6/10),0))) -> 0 | G139: =IF(OR(G129=1,G129=3),$Z$3/12*(1-G$6/10),IF(AND(G129=8,G$6<5),$Z$3/12*0.5,IF(G129=8,$Z$3/12*(1-G$6/10),0))) -> 0 | H139: 0 | I139: 0 | J139: 0 | K139: 0 | L139: 0 | M139: 0 | N139: 0 | O139: 0 | P139: 0 | Q139: 0
E140: 介護 | F140: =IF(F130=1,$AL$3/12*(1-F$6/10),0) -> 0 | G140: =IF(G130=1,$AL$3/12*(1-G$6/10),0) -> 0 | H140: 0 | I140: 0 | J140: 0 | K140: 0 | L140: 0 | M140: 0 | N140: 0 | O140: 0 | P140: 0 | Q140: 0
D141: 限度額用 | E141: 医療 | F141: =IF(OR(F129=1,F129=3,F129=8),$X141+$AA141,0) -> 0 | G141: =IF(OR(G129=1,G129=3,G129=8),$X141+$AA141,0) -> 0 | H141: 0 | I141: 0 | J141: 0 | K141: 0 | L141: 0 | M141: 0 | N141: 0 | O141: 0 | P141: 0 | Q141: 0 | V141: 限度額判定用 | X141: =IF(B129-$AU$2>0,ROUNDDOWN((B129-$AU$2)*$K$3,0),0) -> 0 | AA141: =IF(V130=0,$N$3*(1-0.1*$B$4),$N$3*(1-0.1*$B$4)/2) -> 8880 | AD141: =IF($B129-$AU$2>0,ROUNDDOWN(($B129-$AU$2)*$W$3,0),0) -> 0 | AG141: =IF(V130=0,$Z$3*(1-0.1*$B$4),$Z$3*(1-0.1*$B$4)/2) -> 2790 | AJ141: =IF($B129-$AU$2>0,ROUNDDOWN(($B129-$AU$2)*$AI$3,0),0) -> 0 | AM141: =IF(V130=0,$AL$3*(1-0.1*$B$4),$AL$3*(1-0.1*$B$4)/2) -> 4470
E142: 後期 | F142: =IF(OR(F129=1,F129=3,F129=8),$AD141+$AG141,0) -> 0 | G142: =IF(OR(G129=1,G129=3,G129=8),$AD141+$AG141,0) -> 0 | H142: =IF(OR(H129=1,H129=3,H129=8),$AD141+$AG141,0) -> 0 | I142: =IF(OR(I129=1,I129=3,I129=8),$AD141+$AG141,0) -> 0 | J142: =IF(OR(J129=1,J129=3,J129=8),$AD141+$AG141,0) -> 0 | K142: =IF(OR(K129=1,K129=3,K129=8),$AD141+$AG141,0) -> 0 | L142: =IF(OR(L129=1,L129=3,L129=8),$AD141+$AG141,0) -> 0 | M142: =IF(OR(M129=1,M129=3,M129=8),$AD141+$AG141,0) -> 0 | N142: =IF(OR(N129=1,N129=3,N129=8),$AD141+$AG141,0) -> 0 | O142: =IF(OR(O129=1,O129=3,O129=8),$AD141+$AG141,0) -> 0 | P142: =IF(OR(P129=1,P129=3,P129=8),$AD141+$AG141,0) -> 0 | Q142: =IF(OR(Q129=1,Q129=3,Q129=8),$AD141+$AG141,0) -> 0
E143: 介護 | F143: =IF(F130=1,$AJ141+$AM141,0) -> 0 | G143: =IF(G130=1,$AJ141+$AM141,0) -> 0 | H143: 0 | I143: 0 | J143: 0 | K143: 0 | L143: 0 | M143: 0 | N143: 0 | O143: 0 | P143: 0 | Q143: 0
A144: 10 | E144: 医療 | R144: =COUNTIF(F144:Q144,1)+COUNTIF(F144:Q144,3)+COUNTIF(F144:Q144,8) -> 0 | T144: =COUNTIF(F144:Q144,4)+COUNTIF(F144:Q144,5) -> 0 | V144: =COUNTIF(F144:Q144,8) -> 0 | X144: =IF($R144=0,0,($R144-$V144)/$R144*$X156*$R144/12) -> 0 | AA144: =SUM(F153:Q153)+SUM(F150:Q150) -> 0 | AD144: =IF($R144=0,0,($R144-$V144)/$R144*AD156*$R144/12) -> 0 | AG144: =SUM(F154:Q154)+SUM(F151:Q151) -> 0 | AJ144: =AJ156*$R145/12 -> 0 | AM144: =SUM(F155:Q155) -> 0
E145: 介護 | R145: =SUBTOTAL(9,F145:Q145) -> 0 | T145: =COUNTIF(F144:Q144,6)+COUNTIF(F144:Q144,7) -> 0
E146: 特定
D147: 予備 | E147: 医療
E148: 後期
E149: 介護
D150: 未就学軽減 | E150: 医療 | F150: =IF($V145=1,IF(OR(F144=1,F144=3),-$N$3/12*(1-F$6/10)/2,0),0) -> 0 | G150: =IF($V145=1,IF(OR(G144=1,G144=3),-$N$3/12*(1-G$6/10)/2,0),0) -> 0 | H150: 0 | I150: 0 | J150: 0 | K150: 0 | L150: 0 | M150: 0 | N150: 0 | O150: 0 | P150: 0 | Q150: 0
E151: 後期 | F151: =IF($V145=1,IF(OR(F144=1,F144=3),-$Z$3/12*(1-F$6/10)/2,0),0) -> 0 | G151: =IF($V145=1,IF(OR(G144=1,G144=3),-$Z$3/12*(1-G$6/10)/2,0),0) -> 0 | H151: =IF($V145=1,IF(OR(H144=1,H144=3),-$Z$3/12*(1-H$6/10)/2,0),0) -> 0 | I151: =IF($V145=1,IF(OR(I144=1,I144=3),-$Z$3/12*(1-I$6/10)/2,0),0) -> 0 | J151: 0 | K151: 0 | L151: 0 | M151: 0 | N151: 0 | O151: 0 | P151: =IF($V145=1,IF(OR(P144=1,P144=3),-$Z$3/12*(1-P$6/10)/2,0),0) -> 0 | Q151: =IF($V145=1,IF(OR(Q144=1,Q144=3),-$Z$3/12*(1-Q$6/10)/2,0),0) -> 0
E152: 介護
D153: 均等割用 | E153: 医療 | F153: =IF(OR(F144=1,F144=3),$N$3/12*(1-F$6/10),IF(AND(F144=8,F$6<5),$N$3/12*0.5,IF(F144=8,$N$3/12*(1-F$6/10),0))) -> 0 | G153: 0 | H153: =IF(OR(H144=1,H144=3),$N$3/12*(1-H$6/10),IF(AND(H144=8,H$6<5),$N$3/12*0.5,IF(H144=8,$N$3/12*(1-H$6/10),0))) -> 0 | I153: =IF(OR(I144=1,I144=3),$N$3/12*(1-I$6/10),IF(AND(I144=8,I$6<5),$N$3/12*0.5,IF(I144=8,$N$3/12*(1-I$6/10),0))) -> 0 | J153: 0 | K153: =IF(OR(K144=1,K144=3),$N$3/12*(1-K$6/10),IF(AND(K144=8,K$6<5),$N$3/12*0.5,IF(K144=8,$N$3/12*(1-K$6/10),0))) -> 0 | L153: =IF(OR(L144=1,L144=3),$N$3/12*(1-L$6/10),IF(AND(L144=8,L$6<5),$N$3/12*0.5,IF(L144=8,$N$3/12*(1-L$6/10),0))) -> 0 | M153: 0 | N153: 0 | O153: 0 | P153: 0 | Q153: 0
E154: 後期 | F154: =IF(OR(F144=1,F144=3),$Z$3/12*(1-F$6/10),IF(AND(F144=8,F$6<5),$Z$3/12*0.5,IF(F144=8,$Z$3/12*(1-F$6/10),0))) -> 0 | G154: =IF(OR(G144=1,G144=3),$Z$3/12*(1-G$6/10),IF(AND(G144=8,G$6<5),$Z$3/12*0.5,IF(G144=8,$Z$3/12*(1-G$6/10),0))) -> 0 | H154: 0 | I154: 0 | J154: 0 | K154: 0 | L154: 0 | M154: 0 | N154: 0 | O154: 0 | P154: 0 | Q154: 0
E155: 介護 | F155: =IF(F145=1,$AL$3/12*(1-F$6/10),0) -> 0 | G155: =IF(G145=1,$AL$3/12*(1-G$6/10),0) -> 0 | H155: 0 | I155: 0 | J155: 0 | K155: 0 | L155: 0 | M155: 0 | N155: 0 | O155: 0 | P155: 0 | Q155: 0
D156: 限度額用 | E156: 医療 | F156: =IF(OR(F144=1,F144=3,F144=8),$X156+$AA156,0) -> 0 | G156: =IF(OR(G144=1,G144=3,G144=8),$X156+$AA156,0) -> 0 | H156: 0 | I156: 0 | J156: 0 | K156: 0 | L156: 0 | M156: 0 | N156: 0 | O156: 0 | P156: 0 | Q156: 0 | V156: 限度額判定用 | X156: =IF(B144-$AU$2>0,ROUNDDOWN((B144-$AU$2)*$K$3,0),0) -> 0 | AA156: =IF(V145=0,$N$3*(1-0.1*$B$4),$N$3*(1-0.1*$B$4)/2) -> 8880 | AD156: =IF($B144-$AU$2>0,ROUNDDOWN(($B144-$AU$2)*$W$3,0),0) -> 0 | AG156: =IF(V145=0,$Z$3*(1-0.1*$B$4),$Z$3*(1-0.1*$B$4)/2) -> 2790 | AJ156: =IF($B144-$AU$2>0,ROUNDDOWN(($B144-$AU$2)*$AI$3,0),0) -> 0 | AM156: =IF(V145=0,$AL$3*(1-0.1*$B$4),$AL$3*(1-0.1*$B$4)/2) -> 4470
E157: 後期 | F157: =IF(OR(F144=1,F144=3,F144=8),$AD156+$AG156,0) -> 0 | G157: =IF(OR(G144=1,G144=3,G144=8),$AD156+$AG156,0) -> 0 | H157: =IF(OR(H144=1,H144=3,H144=8),$AD156+$AG156,0) -> 0 | I157: =IF(OR(I144=1,I144=3,I144=8),$AD156+$AG156,0) -> 0 | J157: =IF(OR(J144=1,J144=3,J144=8),$AD156+$AG156,0) -> 0 | K157: =IF(OR(K144=1,K144=3,K144=8),$AD156+$AG156,0) -> 0 | L157: =IF(OR(L144=1,L144=3,L144=8),$AD156+$AG156,0) -> 0 | M157: =IF(OR(M144=1,M144=3,M144=8),$AD156+$AG156,0) -> 0 | N157: =IF(OR(N144=1,N144=3,N144=8),$AD156+$AG156,0) -> 0 | O157: =IF(OR(O144=1,O144=3,O144=8),$AD156+$AG156,0) -> 0 | P157: =IF(OR(P144=1,P144=3,P144=8),$AD156+$AG156,0) -> 0 | Q157: =IF(OR(Q144=1,Q144=3,Q144=8),$AD156+$AG156,0) -> 0
E158: 介護 | F158: =IF(F145=1,$AJ156+$AM156,0) -> 0 | G158: =IF(G145=1,$AJ156+$AM156,0) -> 0 | H158: 0 | I158: 0 | J158: 0 | K158: 0 | L158: 0 | M158: 0 | N158: 0 | O158: 0 | P158: 0 | Q158: 0
E159: 平等割判定用 | F159: =DMAX(F170:F180,F170,$E$171:$E$172) -> 2 | G159: =DMAX(G170:G180,G170,$E$171:$E$172) -> 2 | H159: 2 | I159: 2 | J159: 2 | K159: 2 | L159: 2 | M159: 2 | N159: 2 | O159: 2 | P159: 2 | Q159: 2 | R159: 加入 | S159: =MAX(R9,R24,R39,R54,R69,R84,R99,R114,R129,R144) -> 0 | T159: 同一 | U159: =MAX(T9,T24,T39,T54,T69,T84,T99,T114,T129,T144) -> 0
E160: 平等割（医療） | F160: =IF(F182>0,IF(F159<4,$Q$3*(1-0.1*F$6),IF(F159>5,$Q$3*3/4*(1-0.1*F$6),$Q$3/2*(1-0.1*F$6))),IF(AND(F181=8,F$6<5),$Q$3*0.5,IF(AND(F181=8,F$6>=5),$Q$3*(1-0.1*F$6),0))) -> 0 | G160: =IF(G182>0,IF(G159<4,$Q$3*(1-0.1*G$6),IF(G159>5,$Q$3*3/4*(1-0.1*G$6),$Q$3/2*(1-0.1*G$6))),IF(AND(G181=8,G$6<5),$Q$3*0.5,IF(AND(G181=8,G$6>=5),$Q$3*(1-0.1*G$6),0))) -> 0 | H160: 0 | I160: 0 | J160: 0 | K160: 0 | L160: 0 | M160: 0 | N160: 0 | O160: 0 | P160: 0 | Q160: 0 | R160: 介護 | S160: =MAX(R10,R25,R40,R55,R70,R85,R100,R115,R130,R145) -> 0 | T160: 継続 | U160: =MAX(T10,T25,T40,T55,T70,T85,T100,T115,T130,T145) -> 0
E161: 超過額（医療） | F161: =(F21+F36+F51+F66+F81+F96+F111+F126+F141+F156+F160)-$T$3 -> -650000 | G161: =(G21+G36+G51+G66+G81+G96+G111+G126+G141+G156+G160)-$T$3 -> -650000 | H161: =(H21+H36+H51+H66+H81+H96+H111+H126+H141+H156+H160)-$T$3 -> -650000 | I161: -650000 | J161: -650000 | K161: -650000 | L161: -650000 | M161: -650000 | N161: -650000 | O161: -650000 | P161: -650000 | Q161: -650000
E162: 限度額超計算用（医療） | F162: =IF(F161>0,F161/12,0) -> 0 | G162: =IF(G161>0,G161/12,0) -> 0 | H162: 0 | I162: 0 | J162: 0 | K162: 0 | L162: 0 | M162: 0 | N162: 0 | O162: 0 | P162: 0 | Q162: 0
E163: 平等割（後期） | F163: =IF(F182>0,IF(F159<4,$AC$3*(1-0.1*F$6),IF(F159>5,$AC$3*3/4*(1-0.1*F$6),$AC$3/2*(1-0.1*F$6))),IF(AND(F181=8,F$6<5),$AC$3*0.5,IF(AND(F181=8,F$6>=5),$AC$3*(1-0.1*F$6),0))) -> 0 | G163: =IF(G182>0,IF(G159<4,$AC$3*(1-0.1*G$6),IF(G159>5,$AC$3*3/4*(1-0.1*G$6),$AC$3/2*(1-0.1*G$6))),IF(AND(G181=8,G$6<5),$AC$3*0.5,IF(AND(G181=8,G$6>=5),$AC$3*(1-0.1*G$6),0))) -> 0 | H163: 0 | I163: 0 | J163: 0 | K163: 0 | L163: 0 | M163: 0 | N163: 0 | O163: 0 | P163: 0 | Q163: 0
E164: 超過額（後期） | F164: =(F22+F37+F52+F67+F82+F97+F112+F127+F142+F157+F163)-$AF$3 -> -220000 | G164: =(G22+G37+G52+G67+G82+G97+G112+G127+G142+G157+G163)-$AF$3 -> -220000 | H164: -220000 | I164: -220000 | J164: -220000 | K164: -220000 | L164: -220000 | M164: -220000 | N164: -220000 | O164: -220000 | P164: -220000 | Q164: -220000
E165: 限度額超計算用（後期） | F165: =IF(F164>0,F164/12,0) -> 0 | G165: =IF(G164>0,G164/12,0) -> 0 | H165: 0 | I165: 0 | J165: 0 | K165: 0 | L165: 0 | M165: 0 | N165: 0 | O165: 0 | P165: 0 | Q165: 0
E166: 平等割（介護） | F166: =IF(MAX(F10,F25,F40,F55,F70,F85,F100,F115,F130,F145)=0,0,$AO$3*(1-0.1*F$6)/12) -> 0 | G166: =IF(MAX(G10,G25,G40,G55,G70,G85,G100,G115,G130,G145)=0,0,$AO$3*(1-0.1*G$6)/12) -> 0 | H166: 0 | I166: 0 | J166: 0 | K166: 0 | L166: 0 | M166: 0 | N166: 0 | O166: 0 | P166: 0 | Q166: 0
E167: 超過額（介護） | F167: =(F23+F38+F53+F68+F83+F98+F113+F128+F143+F158+F166)-$AR$3 -> -170000 | G167: =(G23+G38+G53+G68+G83+G98+G113+G128+G143+G158+G166)-$AR$3 -> -170000 | H167: -170000 | I167: -170000 | J167: -170000 | K167: -170000 | L167: -170000 | M167: -170000 | N167: -170000 | O167: -170000 | P167: -170000 | Q167: -170000
E168: 限度額超計算用（介護） | F168: =IF(F167>0,F167/12,0) -> 0 | G168: =IF(G167>0,G167/12,0) -> 0 | H168: 0 | I168: 0 | J168: 0 | K168: 0 | L168: 0 | M168: 0 | N168: 0 | O168: 0 | P168: 0 | Q168: =IF(Q167>0,Q167/12,0) -> 0
E170: 旧被扶判定用 | F170: 資格 | G170: 資格 | H170: 資格 | I170: 資格 | J170: 資格 | K170: 資格 | L170: 資格 | M170: 資格 | N170: 資格 | O170: 資格 | P170: 資格 | Q170: 資格
E171: 資格 | F171: =F9 -> 2 | G171: =G9 -> 2 | H171: 2 | I171: 2 | J171: 2 | K171: 2 | L171: 2 | M171: 2 | N171: 2 | O171: 2 | P171: 2 | Q171: 2
E172: <8 | F172: =F24 ->  | G172: =G24 -> 
F173: =F39 ->  | G173: =G39 -> 
F174: =F54 ->  | G174: =G54 -> 
F175: =F69 ->  | G175: =G69 -> 
F176: =F84 ->  | G176: =G84 -> 
F177: =F99 ->  | G177: =G99 -> 
F178: =F114 ->  | G178: =G114 -> 
F179: =F129 -> 0 | G179: =G129 -> 0 | H179: 0 | I179: 0 | J179: 0 | K179: 0 | L179: 0 | M179: 0 | N179: 0 | O179: 0 | P179: 0 | Q179: 0
F180: =F144 -> 0 | G180: =G144 -> 0 | H180: 0 | I180: 0 | J180: 0 | K180: 0 | L180: 0 | M180: 0 | N180: 0 | O180: 0 | P180: 0 | Q180: 0
E181: 最大値 | F181: =MAX(F171:F180) -> 2 | G181: =MAX(G171:G180) -> 2 | H181: 2 | I181: 2 | J181: 2 | K181: 2 | L181: 2 | M181: 2 | N181: 2 | O181: 2 | P181: 2 | Q181: 2
E182: 旧被扶以外の加入者数 | F182: =COUNTIF(F171:F180,1)+COUNTIF(F171:F180,3) -> 0 | G182: =COUNTIF(G171:G180,1)+COUNTIF(G171:G180,3) -> 0 | H182: 0 | I182: 0 | J182: 0 | K182: 0 | L182: 0 | M182: 0 | N182: 0 | O182: 0 | P182: 0 | Q182: 0
V184: 合計 | X184: =SUBTOTAL(9,X9,X24,X39,X54,X69,X84,X99,X114,X129,X144) -> 0 | AA184: =SUBTOTAL(9,AA9,AA24,AA39,AA54,AA69,AA84,AA99,AA114,AA129,AA144) -> 0 | AD184: =SUBTOTAL(9,AD9,AD24,AD39,AD54,AD69,AD84,AD99,AD114,AD129,AD144) -> 0 | AG184: =SUBTOTAL(9,AG9,AG24,AG39,AG54,AG69,AG84,AG99,AG114,AG129,AG144) -> 0 | AJ184: 0 | AM184: 0
V185: 平等割 | X185: =SUM(F160:Q160)/12 -> 0 | AD185: =SUM(F163:Q163)/12 -> 0 | AJ185: =SUM(F166:Q166) -> 0
W186: 限度超過額 | X186: =SUM(F162:Q162) -> 0 | AD186: =SUM(F165:Q165) -> 0 | AJ186: =SUM(F168:Q168) -> 0
V187: 賦課額 | X187: =ROUNDDOWN(X184+AA184+X185-X186,-2) -> 0 | AD187: =ROUNDDOWN(AD184+AG184+AD185-AD186,-2) -> 0 | AJ187: =ROUNDDOWN(AJ184+AM184+AJ185-AJ186,-2) -> 0

Sheet 軽減計算 (hidden)
C2: 基準額 | O2: 基準額
A3: ７割軽減 | C3: =賦課試算!$AU$2 -> 430000 | D3: ＋ | E3: 100000 | F3: × | G3: =IF(SUBTOTAL(9,$L$9:$L$16)=0,0,SUBTOTAL(9,$L$9:$L$16)-1) -> 0 | H3: 人 | O3: =C3+E3*G3 -> 430000
A4: ５割軽減 | C4: =賦課試算!$AU$2 -> 430000 | D4: ＋ | E4: 100000 | F4: × | G4: =IF(SUBTOTAL(9,$L$9:$L$16)=0,0,SUBTOTAL(9,$L$9:$L$16)-1) -> 0 | H4: 人 | I4: ＋ | J4: 290000 | K4: × | L4: =試算!$X$42 -> 0 | M4: 人 | N4: ＝ | O4: =C4+J4*L4+E4*G4 -> 430000
A5: ２割軽減 | C5: =賦課試算!$AU$2 -> 430000 | D5: ＋ | E5: 100000 | F5: × | G5: =IF(SUBTOTAL(9,$L$9:$L$16)=0,0,SUBTOTAL(9,$L$9:$L$16)-1) -> 0 | H5: 人 | I5: ＋ | J5: 535000 | K5: × | L5: =試算!$X$42 -> 0 | M5: 人 | N5: ＝ | O5: =C5+J5*L5+E5*G5 -> 430000
B8: 年齢 | C8: 給与所得 | E8: 年金所得 | G8: その他所得 | J8: 判定所得 | O8: 課税所得 | P8: 前年度総所得 | Q8: 擬主
A9: 世帯主 | B9: =年金所得計算!B74 ->  | C9: =給与所得計算!D26 -> 0 | E9: =IF(B9<65,年金所得計算!D74,年金所得計算!D74-150000) -> -150000 | G9: =試算!AV25 -> 0 | J9: =C9+E9+G9 -> -150000 | L9: =IF(試算!O20="いいえ",0,IF(OR(C9>0,E9>0),1,0)) -> 0 | O9: =IF(P9-賦課試算!$AU$2<0,0,P9-賦課試算!$AU$2) -> 0 | P9: =給与所得計算!D26+年金所得計算!D74+試算!AV25 -> 0 | Q9: =IF(試算!O20="いいえ",1,0) -> 0
A10: 世帯員１ | B10: =年金所得計算!B75 ->  | C10: =IF(試算!X27<75,給与所得計算!D27,0) -> 0 | E10: =IF(試算!X27<75, IF(B10<65,年金所得計算!D75, IF(年金所得計算!D75-150000<0,0,年金所得計算!D75-150000)),0) -> 0 | G10: =IF(試算!X27<75,試算!AV27,0) -> 0 | J10: 0 | L10: =IF(OR(C10>0,E10>0),1,0) -> 0 | O10: =IF(P10-賦課試算!$AU$2<0,0,P10-賦課試算!$AU$2) -> 0 | P10: =給与所得計算!D27+年金所得計算!D75+試算!AV27 -> 0
A11: 世帯員２ | B11: =年金所得計算!B76 ->  | C11: =IF(試算!X29<75,給与所得計算!D28,0) -> 0 | E11: =IF(試算!X29<75, IF(B11<65,年金所得計算!D76, IF(年金所得計算!D76-150000<0,0,年金所得計算!D76-150000)),0) -> 0 | G11: =IF(試算!X29<75,試算!AV29,0) -> 0 | J11: 0 | L11: 0 | O11: =IF(P11-賦課試算!$AU$2<0,0,P11-賦課試算!$AU$2) -> 0 | P11: =給与所得計算!D28+年金所得計算!D76+試算!AV29 -> 0
A12: 世帯員３ | B12: =年金所得計算!B77 ->  | C12: =IF(試算!X31<75,給与所得計算!D29,0) -> 0 | E12: =IF(試算!X31<75, IF(B12<65,年金所得計算!D77, IF(年金所得計算!D77-150000<0,0,年金所得計算!D77-150000)),0) -> 0 | G12: =IF(試算!X31<75,試算!AV31,0) -> 0 | J12: 0 | L12: 0 | O12: =IF(P12-賦課試算!$AU$2<0,0,P12-賦課試算!$AU$2) -> 0 | P12: =給与所得計算!D29+年金所得計算!D77+試算!AV31 -> 0
A13: 世帯員４ | B13: =年金所得計算!B78 ->  | C13: =IF(試算!X33<75,給与所得計算!D30,0) -> 0 | E13: =IF(試算!X33<75, IF(B13<65,年金所得計算!D78, IF(年金所得計算!D78-150000<0,0,年金所得計算!D78-150000)),0) -> 0 | G13: =IF(試算!X33<75,試算!AV33,0) -> 0 | J13: 0 | L13: 0 | O13: =IF(P13-賦課試算!$AU$2<0,0,P13-賦課試算!$AU$2) -> 0 | P13: =給与所得計算!D30+年金所得計算!D78+試算!AV33 -> 0
A14: 世帯員５ | B14: =年金所得計算!B79 ->  | C14: =IF(試算!X35<75,給与所得計算!D31,0) -> 0 | E14: =IF(試算!X35<75, IF(B14<65,年金所得計算!D79, IF(年金所得計算!D79-150000<0,0,年金所得計算!D79-150000)),0) -> 0 | G14: =IF(試算!X35<75,試算!AV35,0) -> 0 | J14: 0 | L14: 0 | O14: =IF(P14-賦課試算!$AU$2<0,0,P14-賦課試算!$AU$2) -> 0 | P14: =給与所得計算!D31+年金所得計算!D79+試算!AV35 -> 0
A15: 世帯員６ | B15: =年金所得計算!B80 ->  | C15: =IF(試算!X37<75,給与所得計算!D32,0) -> 0 | E15: =IF(試算!X37<75, IF(B15<65,年金所得計算!D80, IF(年金所得計算!D80-150000<0,0,年金所得計算!D80-150000)),0) -> 0 | G15: =IF(試算!X37<75,試算!AV37,0) -> 0 | J15: 0 | L15: 0 | O15: =IF(P15-賦課試算!$AU$2<0,0,P15-賦課試算!$AU$2) -> 0 | P15: =給与所得計算!D32+年金所得計算!D80+試算!AV37 -> 0
A16: 世帯員７ | B16: =年金所得計算!B81 ->  | C16: =IF(試算!X39<75,給与所得計算!D33,0) -> 0 | E16: =IF(試算!X39<75, IF(B16<65,年金所得計算!D81, IF(年金所得計算!D81-150000<0,0,年金所得計算!D81-150000)),0) -> 0 | G16: =IF(試算!X39<75,試算!AV39,0) -> 0 | J16: 0 | L16: 0 | O16: =IF(P16-賦課試算!$AU$2<0,0,P16-賦課試算!$AU$2) -> 0 | P16: =給与所得計算!D33+年金所得計算!D81+試算!AV39 -> 0
G17: 判定所得 | J17: =SUM(J9:K16) -> -150000 | N17: 計 | O17: =IF(Q9=1,SUM(O10:O16),SUM(O9:O16)) -> 0
G18: 軽減判定 | J18: =IF(J17<=O3,7, IF(J17<=O4,5, IF(J17<=O5,2,0))) -> 7

Sheet 加入情報 (hidden)
A1: 令和 | C1: =試算!D1 -> 5 | E1: 年度 国保加入情報
P3: 擬主適用 | R3: =IF(試算!O20="はい",0,1) -> 1 | S3: 加入月 | T3: =T4+0 -> 
S4: 加入日 | T4: =IF(試算!O18<4,"R"&$C$1+1&"."&試算!O18&".1","R"&$C$1&"."&試算!O18&".1") -> R6..1
K5: ="R"&$C$1&".5.1" -> R5.5.1 | L5: ="R"&$C$1&".6.1" -> R5.6.1 | M5: ="R"&$C$1&".7.1" -> R5.7.1 | N5: ="R"&$C$1&".8.1" -> R5.8.1 | O5: ="R"&$C$1&".9.1" -> R5.9.1 | P5: ="R"&$C$1&".10.1" -> R5.10.1 | Q5: ="R"&$C$1&".11.1" -> R5.11.1 | R5: ="R"&$C$1&".12.1" -> R5.12.1 | S5: ="R"&$C$1+1&".1.1" -> R6.1.1 | T5: ="R"&$C$1+1&".2.1" -> R6.2.1 | U5: ="R"&$C$1+1&".3.1" -> R6.3.1 | V5: ="R"&$C$1+1&".4.1" -> R6.4.1
E6: 生年月日 | K6: =K5-1 -> 2023-04-30 | L6: =L5-1 -> 2023-05-31 | M6: 2023-06-30 | N6: 2023-07-31 | O6: 2023-08-31 | P6: 2023-09-30 | Q6: 2023-10-31 | R6: 2023-11-30 | S6: 2023-12-31 | T6: 2024-01-31 | U6: 2024-02-29 | V6: 2024-03-31
A7: 1 | B7: 世帯主 | E7: =試算!Q25 -> 年月日 | J7: 資格 | K7: =IF(K8<75, IF(K$6<$T$3,0, IF($R$3=0,1,2)),2) -> 2 | L7: =IF(L8<75, IF(L$6<$T$3,0, IF($R$3=0,1,2)),2) -> 2 | M7: 2 | N7: 2 | O7: 2 | P7: 2 | Q7: 2 | R7: 2 | S7: 2 | T7: 2 | U7: 2 | V7: 2
J8: 年齢 | K8: =IFERROR(DATEDIF($E$7,K$6,"Y"),"") ->  | L8: =IFERROR(DATEDIF($E$7,L$6,"Y"),"") -> 
J9: 年齢 | K9: =IFERROR(DATEDIF($E$7,K$5,"Y"),"") ->  | L9: =IFERROR(DATEDIF($E$7,L$5,"Y"),"") -> 
A10: 2 | B10: 世帯員 | E10: =試算!Q27 -> 年月日 | J10: 資格 | K10: =IF(OR(K11="",K11>74),0, IF(K$6<$T$3,0,3)) -> 0 | L10: =IF(OR(L11="",L11>74),0, IF(L$6<$T$3,0,3)) -> 0 | M10: 0 | N10: 0 | O10: 0 | P10: 0 | Q10: 0 | R10: 0 | S10: 0 | T10: 0 | U10: 0 | V10: 0
J11: 年齢 | K11: =IFERROR(DATEDIF($E$10,K$6,"Y"),"") ->  | L11: =IFERROR(DATEDIF($E$10,L$6,"Y"),"") ->  | V11: =IFERROR(DATEDIF($E$10,V$6,"Y"),"") -> 
J12: 年齢 | K12: =IFERROR(DATEDIF($E$10,K$5,"Y"),"") ->  | L12: =IFERROR(DATEDIF($E$10,L$5,"Y"),"") ->  | V12: =IFERROR(DATEDIF($E$10,V$5,"Y"),"") -> 
A13: 3 | B13: 世帯員 | E13: =試算!Q29 -> 年月日 | J13: 資格 | K13: =IF(OR(K14="",K14>74),0, IF(K$6<$T$3,0,3)) -> 0 | L13: =IF(OR(L14="",L14>74),0, IF(L$6<$T$3,0,3)) -> 0 | M13: 0 | N13: 0 | O13: 0 | P13: 0 | Q13: 0 | R13: 0 | S13: 0 | T13: 0 | U13: 0 | V13: 0
J14: 年齢 | K14: =IFERROR(DATEDIF($E$13,K$6,"Y"),"") ->  | L14: =IFERROR(DATEDIF($E$13,L$6,"Y"),"") -> 
J15: 年齢 | K15: =IFERROR(DATEDIF($E$13,K$5,"Y"),"") ->  | L15: =IFERROR(DATEDIF($E$13,L$5,"Y"),"") -> 
A16: 4 | B16: 世帯員 | E16: =試算!Q31 -> 年月日 | J16: 資格 | K16: =IF(OR(K17="",K17>74),0, IF(K$6<$T$3,0,3)) -> 0 | L16: =IF(OR(L17="",L17>74),0, IF(L$6<$T$3,0,3)) -> 0 | M16: 0 | N16: 0 | O16: 0 | P16: 0 | Q16: 0 | R16: 0 | S16: 0 | T16: 0 | U16: 0 | V16: 0
J17: 年齢 | K17: =IFERROR(DATEDIF($E$16,K$6,"Y"),"") ->  | L17: =IFERROR(DATEDIF($E$16,L$6,"Y"),"") -> 
J18: 年齢 | K18: =IFERROR(DATEDIF($E$16,K$5,"Y"),"") ->  | L18: =IFERROR(DATEDIF($E$16,L$5,"Y"),"") -> 
A19: 5 | B19: 世帯員 | E19: =試算!Q33 -> 年月日 | J19: 資格 | K19: =IF(OR(K20="",K20>74),0, IF(K$6<$T$3,0,3)) -> 0 | L19: =IF(OR(L20="",L20>74),0, IF(L$6<$T$3,0,3)) -> 0 | M19: 0 | N19: 0 | O19: 0 | P19: 0 | Q19: 0 | R19: 0 | S19: 0 | T19: 0 | U19: 0 | V19: 0
J20: 年齢 | K20: =IFERROR(DATEDIF($E$19,K$6,"Y"),"") ->  | L20: =IFERROR(DATEDIF($E$19,L$6,"Y"),"") -> 
J21: 年齢 | K21: =IFERROR(DATEDIF($E$19,K$5,"Y"),"") ->  | L21: =IFERROR(DATEDIF($E$19,L$5,"Y"),"") -> 
A22: 6 | B22: 世帯員 | E22: =試算!Q35 -> 年月日 | J22: 資格 | K22: =IF(OR(K23="",K23>74),0, IF(K$6<$T$3,0,3)) -> 0 | L22: =IF(OR(L23="",L23>74),0, IF(L$6<$T$3,0,3)) -> 0 | M22: 0 | N22: 0 | O22: 0 | P22: 0 | Q22: 0 | R22: 0 | S22: 0 | T22: 0 | U22: 0 | V22: 0
J23: 年齢 | K23: =IFERROR(DATEDIF($E$22,K$6,"Y"),"") ->  | L23: =IFERROR(DATEDIF($E$22,L$6,"Y"),"") -> 
J24: 年齢 | K24: =IFERROR(DATEDIF($E$22,K$5,"Y"),"") ->  | L24: =IFERROR(DATEDIF($E$22,L$5,"Y"),"") -> 
A25: 7 | B25: 世帯員 | E25: =試算!Q37 -> 年月日 | J25: 資格 | K25: =IF(OR(K26="",K26>74),0, IF(K$6<$T$3,0,3)) -> 0 | L25: =IF(OR(L26="",L26>74),0, IF(L$6<$T$3,0,3)) -> 0 | M25: 0 | N25: 0 | O25: 0 | P25: 0 | Q25: 0 | R25: 0 | S25: 0 | T25: 0 | U25: 0 | V25: 0
J26: 年齢 | K26: =IFERROR(DATEDIF($E$25,K$6,"Y"),"") ->  | L26: =IFERROR(DATEDIF($E$25,L$6,"Y"),"") -> 
J27: 年齢 | K27: =IFERROR(DATEDIF($E$25,K$5,"Y"),"") ->  | L27: =IFERROR(DATEDIF($E$25,L$5,"Y"),"") -> 
A28: 8 | B28: 世帯員 | E28: =試算!Q39 -> 年月日 | J28: 資格 | K28: =IF(OR(K29="",K29>74),0, IF(K$6<$T$3,0,3)) -> 0 | L28: =IF(OR(L29="",L29>74),0, IF(L$6<$T$3,0,3)) -> 0 | M28: 0 | N28: 0 | O28: 0 | P28: 0 | Q28: 0 | R28: 0 | S28: 0 | T28: 0 | U28: 0 | V28: 0
J29: 年齢 | K29: =IFERROR(DATEDIF($E$28,K$6,"Y"),"") ->  | L29: =IFERROR(DATEDIF($E$28,L$6,"Y"),"") -> 
J30: 年齢 | K30: =IFERROR(DATEDIF($E$28,K$5,"Y"),"") ->  | L30: =IFERROR(DATEDIF($E$28,L$5,"Y"),"") -> 

Sheet 給与所得計算 (hidden)
A1: 給与収入 → 給与所得
E3: 世帯主 | F3: 世帯員１ | G3: 世帯員２ | H3: 世帯員３ | I3: 世帯員４ | J3: 世帯員５ | K3: 世帯員６ | L3: 世帯員７
A4: Aの金額 | D4: 算出方法 | E4: =C26 -> 0 | F4: =C27 -> 0 | G4: =C28 -> 0 | H4: =C29 -> 0 | I4: =C30 -> 0 | J4: =C31 -> 0 | K4: =C32 -> 0 | L4: =C33 -> 0 | M4: ⇒給与収入
A5: 0 | B5: ～ | C5: 550999 | D5: 固定値(0) | E5: =IF(AND(E$4>=$A$5,E$4<=$C$5),0,"") -> 0 | F5: =IF(AND(F$4>=$A$5,F$4<=$C$5),0,"") -> 0 | G5: 0 | H5: 0 | I5: 0 | J5: 0 | K5: 0 | L5: 0
A6: =C5+1 -> 551000 | B6: ～ | C6: 1618999 | D6: A - 550,000 | E6: =IF(AND(E$4>=$A$6,E$4<=$C$6),E$4-550000,"") -> 
A7: =C6+1 -> 1619000 | B7: ～ | C7: =C6+1000 -> 1619999 | D7: 固定値(1,069,000) | E7: =IF(AND(E$4>=$A$7,E$4<=$C$7),1069000,"") -> 
A8: 1620000 | B8: ～ | C8: =C7+2000 -> 1621999 | D8: 固定値(1,070,000) | E8: =IF(AND(E$4>=$A$8,E$4<=$C$8),1070000,"") -> 
A9: 1622000 | B9: ～ | C9: =C8+2000 -> 1623999 | D9: 固定値(1,072,000) | E9: =IF(AND(E$4>=$A$9,E$4<=$C$9),1072000,"") -> 
A10: 1624000 | B10: ～ | C10: =C9+4000 -> 1627999 | D10: 固定値(1,074,000) | E10: =IF(AND(E$4>=$A$10,E$4<=$C$10),1074000,"") -> 
A11: 1628000 | B11: ～ | C11: 1799999 | D11: A' × 60％ ＋ 100,000 | E11: =IF(AND(E$4>=$A$11,E$4<=$C$11),ROUNDDOWN(E$4/4000,0)*4000*0.6+100000,"") ->  | F11: =IF(AND(F$4>=$A$11,F$4<=$C$11),ROUNDDOWN(F$4/4000,0)*4000*0.6+100000,"") ->  | M11: A’＝A ÷ 4,000（小数点以下切り捨て）× 4,000
A12: 1800000 | B12: ～ | C12: 3599999 | D12: A' × 70％ － 80,000 | E12: =IF(AND(E$4>=$A$12,E$4<=$C$12),ROUNDDOWN(E$4/4000,0)*4000*0.7-80000,"") ->  | F12: =IF(AND(F$4>=$A$12,F$4<=$C$12),ROUNDDOWN(F$4/4000,0)*4000*0.7-80000,"") ->  | G12: =IF(AND(G$4>=$A$12,G$4<=$C$12),ROUNDDOWN(G$4/4000,0)*4000*0.7-80000,"") ->  | H12: =IF(AND(H$4>=$A$12,H$4<=$C$12),ROUNDDOWN(H$4/4000,0)*4000*0.7-80000,"") ->  | I12: =IF(AND(I$4>=$A$12,I$4<=$C$12),ROUNDDOWN(I$4/4000,0)*4000*0.7-80000,"") ->  | M12: A’＝A ÷ 4,000（小数点以下切り捨て）× 4,000
A13: 3600000 | B13: ～ | C13: 6599999 | D13: A' × 80％ － 440,000 | E13: =IF(AND(E$4>=$A$13,E$4<=$C$13),ROUNDDOWN(E$4/4000,0)*4000*0.8-440000,"") ->  | F13: =IF(AND(F$4>=$A$13,F$4<=$C$13),ROUNDDOWN(F$4/4000,0)*4000*0.8-440000,"") ->  | M13: A’＝A ÷ 4,000（小数点以下切り捨て）× 4,000
A14: 6600000 | B14: ～ | C14: 8499999 | D14: A × 0.9 - 1,100,000 | E14: =IF(AND(E$4>=$A$14,E$4<=$C$14),E$4*0.9-1100000,"") -> 
A15: =C14+1 -> 8500000 | B15: ～ | C15: 999999999 | D15: A-1,950,000 | E15: =IF(AND(E$4>=$A$15,E$4<=$C$15),E$4-1950000,"") -> 
A16: 予備 | C16: 予備 | D16: 予備 | E16: 予備 | F16: 予備 | G16: 予備 | H16: 予備 | I16: 予備 | J16: 予備 | K16: 予備 | L16: 予備
A17: 予備 | C17: 予備 | D17: 予備 | E17: 予備 | F17: 予備 | G17: 予備 | H17: 予備 | I17: 予備 | J17: 予備 | K17: 予備 | L17: 予備
A18: 予備 | C18: 予備 | D18: 予備 | E18: 予備 | F18: 予備 | G18: 予備 | H18: 予備 | I18: 予備 | J18: 予備 | K18: 予備 | L18: 予備
A19: 予備 | C19: 予備 | D19: 予備 | E19: 予備 | F19: 予備 | G19: 予備 | H19: 予備 | I19: 予備 | J19: 予備 | K19: 予備 | L19: 予備
A20: 予備 | C20: 予備 | D20: 予備 | E20: 予備 | F20: 予備 | G20: 予備 | H20: 予備 | I20: 予備 | J20: 予備 | K20: 予備 | L20: 予備
A21: 予備 | C21: 予備 | D21: 予備 | E21: 予備 | F21: 予備 | G21: 予備 | H21: 予備 | I21: 予備 | J21: 予備 | K21: 予備 | L21: 予備
A22: 予備 | C22: 予備 | D22: 予備 | E22: 予備 | F22: 予備 | G22: 予備 | H22: 予備 | I22: 予備 | J22: 予備 | K22: 予備 | L22: 予備
A23: 予備 | C23: 予備 | D23: 予備 | E23: 予備 | F23: 予備 | G23: 予備 | H23: 予備 | I23: 予備 | J23: 予備 | K23: 予備 | L23: 予備
C25: 給与収入 | D25: 給与所得 | E25: 所得金額調整控除 | F25: 調整後給与所得
A26: 世帯主 | C26: =試算!Z25 -> 0 | D26: =MAX(E5:E23) -> 0 | E26: =所得金額調整控除計算!H4 -> 0 | F26: =D26-E26 -> 0
A27: 世帯員１ | C27: =試算!Z27 -> 0 | D27: =MAX(F5:F23) -> 0 | E27: =所得金額調整控除計算!H5 -> 0 | F27: =D27-E27 -> 0
A28: 世帯員２ | C28: =試算!Z29 -> 0 | D28: =MAX(G5:G23) -> 0 | E28: =所得金額調整控除計算!H6 -> 0 | F28: 0
A29: 世帯員３ | C29: =試算!Z31 -> 0 | D29: =MAX(H5:H23) -> 0 | E29: =所得金額調整控除計算!H7 -> 0 | F29: 0
A30: 世帯員４ | C30: =試算!Z33 -> 0 | D30: =MAX(I5:I23) -> 0 | E30: =所得金額調整控除計算!H8 -> 0 | F30: 0
A31: 世帯員５ | C31: =試算!Z35 -> 0 | D31: =MAX(J5:J23) -> 0 | E31: =所得金額調整控除計算!H9 -> 0 | F31: 0
A32: 世帯員６ | C32: =試算!Z37 -> 0 | D32: =MAX(K5:K23) -> 0 | E32: =所得金額調整控除計算!H10 -> 0 | F32: 0
A33: 世帯員７ | C33: =試算!Z39 -> 0 | D33: =MAX(L5:L23) -> 0 | E33: =所得金額調整控除計算!H11 -> 0 | F33: 0

Sheet 賦課額表示 (hidden)
A1: =賦課試算!A1&"年度" -> R5年度 | B1: 医 療 | C1: 後 期 | D1: 介 護 | E1: 合 計
A2: 賦 課 額 | B2: =賦課試算!X187 -> 0 | C2: =賦課試算!AD187 -> 0 | D2: =賦課試算!AJ187 -> 0 | E2: =SUM(B2:D2) -> 0

Sheet 年金所得計算 (hidden)
A1: 年金収入 → 年金所得
A3: 〇公的年金等雑所得以外の所得に係る合計所得金額 1,000万円以下
A4: 65歳未満 | E4: 世帯主 | F4: 世帯員１ | G4: 世帯員２ | H4: 世帯員３ | I4: 世帯員４ | J4: 世帯員５ | K4: 世帯員６ | L4: 世帯員７
A5: Aの金額 | D5: 算出方法 | E5: =C$74 -> 0 | F5: =C$75 -> 0 | G5: =C$76 -> 0 | H5: =C$77 -> 0 | I5: =C$78 -> 0 | J5: =C$79 -> 0 | K5: =C$80 -> 0 | L5: =C$81 -> 0 | M5: ⇒年金収入
A6: 0 | B6: ～ | C6: 1300000 | D6: A - 600,000 | E6: =IF(AND(E$5>=$A$6,E$5<=$C$6), IF(E$5-600000<0,0,E$5-600000),"") -> 0 | F6: 0 | G6: 0 | H6: 0 | I6: 0 | J6: 0 | K6: 0 | L6: 0
A7: =C6+1 -> 1300001 | B7: ～ | C7: 4100000 | D7: A × 0.75－275,000 | E7: =IF(AND(E$5>=$A$7,E$5<=$C$7),E$5*0.75-275000,"") -> 
A8: =C7+1 -> 4100001 | B8: ～ | C8: 7700000 | D8: A × 0.85－685,000 | E8: =IF(AND(E$5>=$A$8,E$5<=$C$8),E$5*0.85-685000,"") -> 
A9: =C8+1 -> 7700001 | B9: ～ | C9: 10000000 | D9: A × 0.95－1,455,000 | E9: =IF(AND(E$5>=$A$9,E$5<=$C$9),E$5*0.95-1455000,"") -> 
A10: =C9+1 -> 10000001 | C10: 999999999 | D10: A - 1,955,000 | E10: =IF(AND(E$5>=$A$10,E$5<=$C$10),E$5-1955000,"") ->  | F10: =IF(AND(F$5>=$A$10,F$5<=$C$10),F$5-1955000,"") ->  | G10: =IF(AND(G$5>=$A$10,G$5<=$C$10),G$5-1955000,"") ->  | L10: =IF(AND(L$5>=$A$10,L$5<=$C$10),L$5-1955000,"") -> 
A11: 予備 | C11: 予備 | D11: 予備 | E11: 予備 | F11: 予備 | G11: 予備 | H11: 予備 | I11: 予備 | J11: 予備 | K11: 予備 | L11: 予備
A12: 予備 | C12: 予備 | D12: 予備 | E12: 予備 | F12: 予備 | G12: 予備 | H12: 予備 | I12: 予備 | J12: 予備 | K12: 予備 | L12: 予備
A13: 予備 | C13: 予備 | D13: 予備 | E13: 予備 | F13: 予備 | G13: 予備 | H13: 予備 | I13: 予備 | J13: 予備 | K13: 予備 | L13: 予備
A15: 65歳以上 | E15: 世帯主 | F15: 世帯員１ | G15: 世帯員２ | H15: 世帯員３ | I15: 世帯員４ | J15: 世帯員５ | K15: 世帯員６ | L15: 世帯員７
A16: Aの金額 | D16: 算出方法 | E16: =C$74 -> 0 | F16: =C$75 -> 0 | G16: =C$76 -> 0 | H16: =C$77 -> 0 | I16: =C$78 -> 0 | J16: =C$79 -> 0 | K16: =C$80 -> 0 | L16: =C$81 -> 0 | M16: ⇒年金収入
A17: 0 | B17: ～ | C17: 3300000 | D17: A - 1,100,000 | E17: =IF(AND(E$16>=$A$17,E$16<=$C$17), IF(E$16-1100000<0,0,E$16-1100000),"") -> 0 | F17: 0 | G17: 0 | H17: 0 | I17: 0 | J17: 0 | K17: 0 | L17: 0
A18: =C17+1 -> 3300001 | B18: ～ | C18: 4100000 | D18: A × 0.75－275,000 | E18: =IF(AND(E$16>=$A$18,E$16<=$C$18),E$16*0.75-275000,"") -> 
A19: =C18+1 -> 4100001 | B19: ～ | C19: 7700000 | D19: A × 0.85－685,000 | E19: =IF(AND(E$16>=$A$19,E$16<=$C$19),E$16*0.85-685000,"") -> 
A20: =C19+1 -> 7700001 | B20: ～ | C20: 10000000 | D20: A × 0.95－1,455,000 | E20: =IF(AND(E$16>=$A$20,E$16<=$C$20),E$16*0.95-1455000,"") -> 
A21: =C20+1 -> 10000001 | C21: 999999999 | D21: A - 1,955,000 | E21: =IF(AND(E$16>=$A$21,E$16<=$C$21),E$16-1955000,"") ->  | F21: =IF(AND(F$16>=$A$21,F$16<=$C$21),F$16-1955000,"") -> 
A22: 予備 | C22: 予備 | D22: 予備 | E22: 予備 | F22: 予備 | G22: 予備 | H22: 予備 | I22: 予備 | J22: 予備 | K22: 予備 | L22: 予備
A23: 予備 | C23: 予備 | D23: 予備 | E23: 予備 | F23: 予備 | G23: 予備 | H23: 予備 | I23: 予備 | J23: 予備 | K23: 予備 | L23: 予備
A24: 予備 | C24: 予備 | D24: 予備 | E24: 予備 | F24: 予備 | G24: 予備 | H24: 予備 | I24: 予備 | J24: 予備 | K24: 予備 | L24: 予備
A26: 〇公的年金等雑所得以外の所得に係る合計所得金額 1,000万円超 2,000万円以下
A27: 65歳未満 | E27: 世帯主 | F27: 世帯員１ | G27: 世帯員２ | H27: 世帯員３ | I27: 世帯員４ | J27: 世帯員５ | K27: 世帯員６ | L27: 世帯員７
A28: Aの金額 | D28: 算出方法 | E28: =C$74 -> 0 | F28: =C$75 -> 0 | G28: =C$76 -> 0 | H28: =C$77 -> 0 | I28: =C$78 -> 0 | J28: =C$79 -> 0 | K28: =C$80 -> 0 | L28: =C$81 -> 0 | M28: ⇒年金収入
A29: 0 | B29: ～ | C29: 1300000 | D29: A - 500,000 | E29: =IF(AND(E$28>=$A$29,E$28<=$C$29), IF(E$28-500000<0,0,E$28-500000),"") -> 0 | F29: =IF(AND(F$28>=$A$29,F$5<=$C$29), IF(F$5-500000<0,0,F$5-500000),"") -> 0 | G29: 0 | H29: 0 | I29: 0 | J29: 0 | K29: 0 | L29: =IF(AND(L$28>=$A$29,L$5<=$C$29), IF(L$5-500000<0,0,L$5-500000),"") -> 0
A30: =C29+1 -> 1300001 | B30: ～ | C30: 4100000 | D30: A × 0.75－175,000 | E30: =IF(AND(E$28>=$A$30,E$28<=$C$30),E$28*0.75-175000,"") ->  | F30: =IF(AND(F$28>=$A$30,F$5<=$C$30),F$5*0.75-175000,"") -> 
A31: =C30+1 -> 4100001 | B31: ～ | C31: 7700000 | D31: A × 0.85－585,000 | E31: =IF(AND(E$28>=$A$31,E$28<=$C$31),E$28*0.85-585000,"") ->  | F31: =IF(AND(F$5>=$A$8,F$5<=$C$8),F$5*0.85-585000,"") -> 
A32: =C31+1 -> 7700001 | B32: ～ | C32: 10000000 | D32: A × 0.95－1,355,000 | E32: =IF(AND(E$28>=$A$32,E$28<=$C$32),E$28*0.95-1355000,"") ->  | F32: =IF(AND(F$28>=$A$32,F$28<=$C$32),F$28*0.95-1355000,"") -> 
A33: =C32+1 -> 10000001 | C33: 999999999 | D33: A - 1,855,000 | E33: =IF(AND(E$28>=$A$33,E$28<=$C$33),E$28-1855000,"") ->  | F33: =IF(AND(F$28>=$A$33,F$28<=$C$33),F$28-1855000,"") ->  | I33: =IF(AND(I$28>=$A$33,I$28<=$C$33),I$28-1855000,"") -> 
A34: 予備 | C34: 予備 | D34: 予備 | E34: 予備 | F34: 予備 | G34: 予備 | H34: 予備 | I34: 予備 | J34: 予備 | K34: 予備 | L34: 予備
A35: 予備 | C35: 予備 | D35: 予備 | E35: 予備 | F35: 予備 | G35: 予備 | H35: 予備 | I35: 予備 | J35: 予備 | K35: 予備 | L35: 予備
A36: 予備 | C36: 予備 | D36: 予備 | E36: 予備 | F36: 予備 | G36: 予備 | H36: 予備 | I36: 予備 | J36: 予備 | K36: 予備 | L36: 予備
A38: 65歳以上 | E38: 世帯主 | F38: 世帯員１ | G38: 世帯員２ | H38: 世帯員３ | I38: 世帯員４ | J38: 世帯員５ | K38: 世帯員６ | L38: 世帯員７
A39: Aの金額 | D39: 算出方法 | E39: =C$74 -> 0 | F39: =C$75 -> 0 | G39: =C$76 -> 0 | H39: =C$77 -> 0 | I39: =C$78 -> 0 | J39: =C$79 -> 0 | K39: =C$80 -> 0 | L39: =C$81 -> 0 | M39: ⇒年金収入
A40: 0 | B40: ～ | C40: 3300000 | D40: A - 1,000,000 | E40: =IF(AND(E$39>=$A$40,E$39<=$C$40), IF(E$39-1000000<0,0,E$39-1000000),"") -> 0 | F40: =IF(AND(F$39>=$A$40,F$39<=$C$40), IF(F$39-1000000<0,0,F$39-1000000),"") -> 0 | G40: 0 | H40: 0 | I40: 0 | J40: 0 | K40: 0 | L40: 0
A41: =C40+1 -> 3300001 | B41: ～ | C41: 4100000 | D41: A × 0.75－175,000 | E41: =IF(AND(E$39>=$A$41,E$39<=$C$41),E$39*0.75-175000,"") ->  | F41: =IF(AND(F$39>=$A$41,F$39<=$C$41),F$39*0.75-175000,"") -> 
A42: =C41+1 -> 4100001 | B42: ～ | C42: 7700000 | D42: A × 0.85－585,000 | E42: =IF(AND(E$39>=$A$42,E$39<=$C$42),E$39*0.85-585000,"") ->  | F42: =IF(AND(F$39>=$A$42,F$39<=$C$42),F$39*0.85-585000,"") -> 
A43: =C42+1 -> 7700001 | B43: ～ | C43: 10000000 | D43: A × 0.95－1,355,000 | E43: =IF(AND(E$39>=$A$43,E$39<=$C$43),E$39*0.95-1355000,"") ->  | F43: =IF(AND(F$39>=$A$43,F$39<=$C$43),F$39*0.95-1355000,"") -> 
A44: =C43+1 -> 10000001 | C44: 999999999 | D44: A - 1,855,000 | E44: =IF(AND(E$39>=$A$44,E$39<=$C$44),E$39-1855000,"") ->  | F44: =IF(AND(F$39>=$A$44,F$39<=$C$44),F$39-1855000,"") -> 
A45: 予備 | C45: 予備 | D45: 予備 | E45: 予備 | F45: 予備 | G45: 予備 | H45: 予備 | I45: 予備 | J45: 予備 | K45: 予備 | L45: 予備
A46: 予備 | C46: 予備 | D46: 予備 | E46: 予備 | F46: 予備 | G46: 予備 | H46: 予備 | I46: 予備 | J46: 予備 | K46: 予備 | L46: 予備
A47: 予備 | C47: 予備 | D47: 予備 | E47: 予備 | F47: 予備 | G47: 予備 | H47: 予備 | I47: 予備 | J47: 予備 | K47: 予備 | L47: 予備
A49: 〇公的年金等雑所得以外の所得に係る合計所得金額 2,000万円超
A50: 65歳未満 | E50: 世帯主 | F50: 世帯員１ | G50: 世帯員２ | H50: 世帯員３ | I50: 世帯員４ | J50: 世帯員５ | K50: 世帯員６ | L50: 世帯員７
A51: Aの金額 | D51: 算出方法 | E51: =C$74 -> 0 | F51: =C$75 -> 0 | G51: =C$76 -> 0 | H51: =C$77 -> 0 | I51: =C$78 -> 0 | J51: =C$79 -> 0 | K51: =C$80 -> 0 | L51: =C$81 -> 0 | M51: ⇒年金収入
A52: 0 | B52: ～ | C52: 1300000 | D52: A - 400,000 | E52: =IF(AND(E$51>=$A$52,E$51<=$C$52), IF(E$51-400000<0,0,E$51-400000),"") -> 0 | F52: =IF(AND(F$51>=$A$52,F$51<=$C$52), IF(F$51-400000<0,0,F$51-400000),"") -> 0 | G52: 0 | H52: 0 | I52: 0 | J52: 0 | K52: 0 | L52: 0
A53: =C52+1 -> 1300001 | B53: ～ | C53: 4100000 | D53: A × 0.75－75,000 | E53: =IF(AND(E$51>=$A$53,E$51<=$C$53),E$51*0.75-75000,"") ->  | F53: =IF(AND(F$51>=$A$53,F$51<=$C$53),F$51*0.75-75000,"") ->  | G53: =IF(AND(G$51>=$A$53,G$51<=$C$53),G$51*0.75-75000,"") -> 
A54: =C53+1 -> 4100001 | B54: ～ | C54: 7700000 | D54: A × 0.85－485,000 | E54: =IF(AND(E$51>=$A$54,E$51<=$C$54),E$51*0.85-485000,"") ->  | F54: =IF(AND(F$51>=$A$54,F$51<=$C$54),F$51*0.85-485000,"") -> 
A55: =C54+1 -> 7700001 | B55: ～ | C55: 10000000 | D55: A × 0.95－1,255,000 | E55: =IF(AND(E$51>=$A$55,E$51<=$C$55),E$51*0.95-1255000,"") ->  | F55: =IF(AND(F$51>=$A$55,F$51<=$C$55),F$51*0.95-1255000,"") -> 
A56: =C55+1 -> 10000001 | C56: 999999999 | D56: A - 1,755,000 | E56: =IF(AND(E$51>=$A$56,E$51<=$C$56),E$51-1755000,"") ->  | F56: =IF(AND(F$51>=$A$56,F$51<=$C$56),F$51-1755000,"") -> 
A57: 予備 | C57: 予備 | D57: 予備 | E57: 予備 | F57: 予備 | G57: 予備 | H57: 予備 | I57: 予備 | J57: 予備 | K57: 予備 | L57: 予備
A58: 予備 | C58: 予備 | D58: 予備 | E58: 予備 | F58: 予備 | G58: 予備 | H58: 予備 | I58: 予備 | J58: 予備 | K58: 予備 | L58: 予備
A59: 予備 | C59: 予備 | D59: 予備 | E59: 予備 | F59: 予備 | G59: 予備 | H59: 予備 | I59: 予備 | J59: 予備 | K59: 予備 | L59: 予備
A61: 65歳以上 | E61: 世帯主 | F61: 世帯員１ | G61: 世帯員２ | H61: 世帯員３ | I61: 世帯員４ | J61: 世帯員５ | K61: 世帯員６ | L61: 世帯員７
A62: Aの金額 | D62: 算出方法 | E62: =C$74 -> 0 | F62: =C$75 -> 0 | G62: =C$76 -> 0 | H62: =C$77 -> 0 | I62: =C$78 -> 0 | J62: =C$79 -> 0 | K62: =C$80 -> 0 | L62: =C$81 -> 0 | M62: ⇒年金収入
A63: 0 | B63: ～ | C63: 3300000 | D63: A - 900,000 | E63: =IF(AND(E$62>=$A$63,E$62<=$C$63), IF(E$62-900000<0,0,E$62-900000),"") -> 0 | F63: =IF(AND(F$62>=$A$63,F$62<=$C$63), IF(F$62-900000<0,0,F$62-900000),"") -> 0 | G63: 0 | H63: 0 | I63: 0 | J63: 0 | K63: 0 | L63: 0
A64: =C63+1 -> 3300001 | B64: ～ | C64: 4100000 | D64: A × 0.75－75,000 | E64: =IF(AND(E$62>=$A$64,E$62<=$C$64),E$62*0.75-75000,"") ->  | F64: =IF(AND(F$62>=$A$64,F$62<=$C$64),F$62*0.75-75000,"") -> 
A65: =C64+1 -> 4100001 | B65: ～ | C65: 7700000 | D65: A × 0.85－485,000 | E65: =IF(AND(E$62>=$A$65,E$62<=$C$65),E$62*0.85-485000,"") ->  | F65: =IF(AND(F$62>=$A$65,F$62<=$C$65),F$62*0.85-485000,"") -> 
A66: =C65+1 -> 7700001 | B66: ～ | C66: 10000000 | D66: A × 0.95－1,255,000 | E66: =IF(AND(E$62>=$A$66,E$62<=$C$66),E$62*0.95-1255000,"") ->  | F66: =IF(AND(F$62>=$A$66,F$62<=$C$66),F$62*0.95-1255000,"") -> 
A67: =C66+1 -> 10000001 | C67: 999999999 | D67: A - 1,755,000 | E67: =IF(AND(E$62>=$A$67,E$62<=$C$67),E$62-1755000,"") ->  | F67: =IF(AND(F$62>=$A$67,F$62<=$C$67),F$62-1755000,"") -> 
A68: 予備 | C68: 予備 | D68: 予備 | E68: 予備 | F68: 予備 | G68: 予備 | H68: 予備 | I68: 予備 | J68: 予備 | K68: 予備 | L68: 予備
A69: 予備 | C69: 予備 | D69: 予備 | E69: 予備 | F69: 予備 | G69: 予備 | H69: 予備 | I69: 予備 | J69: 予備 | K69: 予備 | L69: 予備
A70: 予備 | C70: 予備 | D70: 予備 | E70: 予備 | F70: 予備 | G70: 予備 | H70: 予備 | I70: 予備 | J70: 予備 | K70: 予備 | L70: 予備
E72: 公的年金以外の合計所得
B73: 年齢 | C73: 年金収入 | D73: 年金所得 | E73: 1,000万以下 | F73: 2,000万以下 | G73: 2,000万超 | H73: 所得額
A74: 世帯主 | B74: =試算!V25 ->  | C74: =試算!AK25 -> 0 | D74: =IF(H74<=10000000,E74,IF(H74>20000000,G74,F74)) -> 0 | E74: =IF($B$74<65,MAX($E6:$E13),MAX($E17:$E24)) -> 0 | F74: =IF($B$74<65,MAX($E29:$E36),MAX($E40:$E47)) -> 0 | G74: =IF($B$74<65,MAX($E52:$E59),MAX($E63:$E70)) -> 0 | H74: =給与所得計算!D26+試算!AV25 -> 0
A75: 世帯員１ | B75: =試算!V27 ->  | C75: =試算!AK27 -> 0 | D75: =IF(H75<=10000000,E75,IF(H75>20000000,G75,F75)) -> 0 | E75: =IF($B$75<65,MAX($F6:$F13),MAX($F17:$F24)) -> 0 | F75: =IF($B$75<65,MAX($F29:$F36),MAX($F40:$F47)) -> 0 | G75: =IF($B$75<65,MAX($F52:$F59),MAX($F63:$F70)) -> 0 | H75: =給与所得計算!D27+試算!AV27 -> 0
A76: 世帯員２ | B76: =試算!V29 ->  | C76: =試算!AK29 -> 0 | D76: 0 | E76: =IF($B$76<65,MAX($G6:$G13),MAX($G17:$G24)) -> 0 | F76: =IF($B$76<65,MAX($G29:$G36),MAX($G40:$G47)) -> 0 | G76: =IF($B$76<65,MAX($G52:$G59),MAX($G63:$G70)) -> 0 | H76: =給与所得計算!D28+試算!AV29 -> 0
A77: 世帯員３ | B77: =試算!V31 ->  | C77: =試算!AK31 -> 0 | D77: 0 | E77: =IF($B77<65,MAX($H6:$H13),MAX($H17:$H24)) -> 0 | F77: =IF($B77<65,MAX($H29:$H36),MAX($H40:$H47)) -> 0 | G77: =IF($B77<65,MAX($H52:$H59),MAX($H63:$H70)) -> 0 | H77: =給与所得計算!D29+試算!AV31 -> 0
A78: 世帯員４ | B78: =試算!V33 ->  | C78: =試算!AK33 -> 0 | D78: 0 | E78: =IF($B$78<65,MAX($I6:$I13),MAX($I17:$I24)) -> 0 | F78: =IF($B$78<65,MAX($I29:$I36),MAX($I40:$I47)) -> 0 | G78: =IF($B$78<65,MAX($I52:$I59),MAX($I63:$I70)) -> 0 | H78: =給与所得計算!D30+試算!AV33 -> 0
A79: 世帯員５ | B79: =試算!V35 ->  | C79: =試算!AK35 -> 0 | D79: 0 | E79: =IF($B$79<65,MAX($J6:$J13),MAX($J17:$J24)) -> 0 | F79: =IF($B$79<65,MAX($J29:$J36),MAX($J40:$J47)) -> 0 | G79: =IF($B$79<65,MAX($J52:$J59),MAX($J63:$J70)) -> 0 | H79: =給与所得計算!D31+試算!AV35 -> 0
A80: 世帯員６ | B80: =試算!V37 ->  | C80: =試算!AK37 -> 0 | D80: 0 | E80: =IF($B$80<65,MAX($K6:$K13),MAX($K17:$K24)) -> 0 | F80: =IF($B$80<65,MAX($K29:$K36),MAX($K40:$K47)) -> 0 | G80: =IF($B$80<65,MAX($K52:$K59),MAX($K63:$K70)) -> 0 | H80: =給与所得計算!D32+試算!AV37 -> 0
A81: 世帯員７ | B81: =試算!V39 ->  | C81: =試算!AK39 -> 0 | D81: 0 | E81: =IF($B$81<65,MAX($L6:$L13),MAX($L17:$L24)) -> 0 | F81: =IF($B$81<65,MAX($L29:$L36),MAX($L40:$L47)) -> 0 | G81: =IF($B$81<65,MAX($L52:$L59),MAX($L63:$L70)) -> 0 | H81: =給与所得計算!D33+試算!AV39 -> 0

Sheet 所得金額調整控除計算 (hidden)
A1: 所得金額調整控除
C2: 給与所得 | D2: 年金所得 | E2: 所得金額調整控除計算
E3: 給与所得 | F3: 年金所得 | G3: 該当有無 | H3: 所得金額調整控除額
A4: 世帯主 | C4: =給与所得計算!D26 -> 0 | D4: =年金所得計算!D74 -> 0 | E4: =IF(C4>=100000,100000,C4) -> 0 | F4: =IF(D4>=100000,100000,D4) -> 0 | G4: =IF(AND(E4>0,F4>0,E4+F4>=100000),"有","無") -> 無 | H4: =IF(G4="有",E4+F4-100000,0) -> 0
A5: 世帯員１ | C5: =給与所得計算!D27 -> 0 | D5: =年金所得計算!D75 -> 0 | E5: =IF(C5>=100000,100000,C5) -> 0 | F5: =IF(D5>=100000,100000,D5) -> 0 | G5: =IF(AND(E5>0,F5>0,E5+F5>=100000),"有","無") -> 無 | H5: =IF(G5="有",E5+F5-100000,0) -> 0
A6: 世帯員２ | C6: =給与所得計算!D28 -> 0 | D6: =年金所得計算!D76 -> 0 | E6: 0 | F6: 0 | G6: 無 | H6: 0
A7: 世帯員３ | C7: =給与所得計算!D29 -> 0 | D7: =年金所得計算!D77 -> 0 | E7: 0 | F7: 0 | G7: 無 | H7: 0
A8: 世帯員４ | C8: =給与所得計算!D30 -> 0 | D8: =年金所得計算!D78 -> 0 | E8: 0 | F8: 0 | G8: 無 | H8: 0
A9: 世帯員５ | C9: =給与所得計算!D31 -> 0 | D9: =年金所得計算!D79 -> 0 | E9: 0 | F9: 0 | G9: 無 | H9: 0
A10: 世帯員６ | C10: =給与所得計算!D32 -> 0 | D10: =年金所得計算!D80 -> 0 | E10: 0 | F10: 0 | G10: 無 | H10: 0
A11: 世帯員７ | C11: =給与所得計算!D33 -> 0 | D11: =年金所得計算!D81 -> 0 | E11: 0 | F11: 0 | G11: 無 | H11: 0
